{"text_format":"1","workbook":"xlsx","n_sheets":4,"sheets":["部首と位置","部首名わかるかな","部首名一覧","部首の位置のもと"],"not_rendered":{"charts":0,"images":0,"macros":0,"external_links":0,"defined_names":0,"comments":0,"pivot_tables":0},"unopened":[],"bounds":{"document_bytes":16777216,"sheet_cells":100000,"rows_first":2000,"rows_last":500,"rows_between":2000,"halvings":0,"cell_chars":16384,"cell_head_chars":4096},"cells_cut":0,"cells_raw":0,"read":"whole","date_system":"1900"}

{"sheet":"部首と位置","index":0,"n_rows":9,"n_cols":11,"rows_kept":9,"cut":false,"hidden":false,"merged":[[1,2,8,2]]}
[0]
[null,null,{"$f":"VLOOKUP($A$1,部首の位置のもと!$B$3:$C$10,2)","v":"部首の呼び名"},{"$f":"IF(IF($A$1=1,部首の位置のもと!G4,IF($A$1=2,部首の位置のもと!G13,IF(部首と位置!$A$1=3,部首の位置のもと!G22,IF($A$1=4,部首の位置のもと!G31,IF(部首と位置!$A$1=5,部首の位置のもと!G40,IF($A$1=6,部首の位置のもと!G49,IF($A$1=7,部首の位置のもと!G58,IF($A$1=8,部首の位置のもと!G67,\"\"))))))))=\"\",\"\",IF($A$1=1,部首の位置のもと!G4,IF($A$1=2,部首の位置のもと!G13,IF(部首と位置!$A$1=3,部首の位置のもと!G22,IF($A$1=4,部首の位置のもと!G31,IF(部首と位置!$A$1=5,部首の位置のもと!G40,IF($A$1=6,部首の位置のもと!G49,IF($A$1=7,部首の位置のもと!G58,IF($A$1=8,部首の位置のもと!G67,\"\")))))))))","v":""},{"$f":"IF(IF($A$1=1,部首の位置のもと!H4,IF($A$1=2,部首の位置のもと!H13,IF(部首と位置!$A$1=3,部首の位置のもと!H22,IF($A$1=4,部首の位置のもと!H31,IF(部首と位置!$A$1=5,部首の位置のもと!H40,IF($A$1=6,部首の位置のもと!H49,IF($A$1=7,部首の位置のもと!H58,IF($A$1=8,部首の位置のもと!H67,\"\"))))))))=\"\",\"\",IF($A$1=1,部首の位置のもと!H4,IF($A$1=2,部首の位置のもと!H13,IF(部首と位置!$A$1=3,部首の位置のもと!H22,IF($A$1=4,部首の位置のもと!H31,IF(部首と位置!$A$1=5,部首の位置のもと!H40,IF($A$1=6,部首の位置のもと!H49,IF($A$1=7,部首の位置のもと!H58,IF($A$1=8,部首の位置のもと!H67,\"\")))))))))","v":""},{"$f":"IF(IF($A$1=1,部首の位置のもと!I4,IF($A$1=2,部首の位置のもと!I13,IF(部首と位置!$A$1=3,部首の位置のもと!I22,IF($A$1=4,部首の位置のもと!I31,IF(部首と位置!$A$1=5,部首の位置のもと!I40,IF($A$1=6,部首の位置のもと!I49,IF($A$1=7,部首の位置のもと!I58,IF($A$1=8,部首の位置のもと!I67,\"\"))))))))=\"\",\"\",IF($A$1=1,部首の位置のもと!I4,IF($A$1=2,部首の位置のもと!I13,IF(部首と位置!$A$1=3,部首の位置のもと!I22,IF($A$1=4,部首の位置のもと!I31,IF(部首と位置!$A$1=5,部首の位置のもと!I40,IF($A$1=6,部首の位置のもと!I49,IF($A$1=7,部首の位置のもと!I58,IF($A$1=8,部首の位置のもと!I67,\"\")))))))))","v":""},{"$f":"IF(IF($A$1=1,部首の位置のもと!J4,IF($A$1=2,部首の位置のもと!J13,IF(部首と位置!$A$1=3,部首の位置のもと!J22,IF($A$1=4,部首の位置のもと!J31,IF(部首と位置!$A$1=5,部首の位置のもと!J40,IF($A$1=6,部首の位置のもと!J49,IF($A$1=7,部首の位置のもと!J58,IF($A$1=8,部首の位置のもと!J67,\"\"))))))))=\"\",\"\",IF($A$1=1,部首の位置のもと!J4,IF($A$1=2,部首の位置のもと!J13,IF(部首と位置!$A$1=3,部首の位置のもと!J22,IF($A$1=4,部首の位置のもと!J31,IF(部首と位置!$A$1=5,部首の位置のもと!J40,IF($A$1=6,部首の位置のもと!J49,IF($A$1=7,部首の位置のもと!J58,IF($A$1=8,部首の位置のもと!J67,\"\")))))))))","v":""},{"$f":"IF(IF($A$1=1,部首の位置のもと!K4,IF($A$1=2,部首の位置のもと!K13,IF(部首と位置!$A$1=3,部首の位置のもと!K22,IF($A$1=4,部首の位置のもと!K31,IF(部首と位置!$A$1=5,部首の位置のもと!K40,IF($A$1=6,部首の位置のもと!K49,IF($A$1=7,部首の位置のもと!K58,IF($A$1=8,部首の位置のもと!K67,\"\"))))))))=\"\",\"\",IF($A$1=1,部首の位置のもと!K4,IF($A$1=2,部首の位置のもと!K13,IF(部首と位置!$A$1=3,部首の位置のもと!K22,IF($A$1=4,部首の位置のもと!K31,IF(部首と位置!$A$1=5,部首の位置のもと!K40,IF($A$1=6,部首の位置のもと!K49,IF($A$1=7,部首の位置のもと!K58,IF($A$1=8,部首の位置のもと!K67,\"\")))))))))","v":""},{"$f":"IF(IF($A$1=1,部首の位置のもと!L4,IF($A$1=2,部首の位置のもと!L13,IF(部首と位置!$A$1=3,部首の位置のもと!L22,IF($A$1=4,部首の位置のもと!L31,IF(部首と位置!$A$1=5,部首の位置のもと!L40,IF($A$1=6,部首の位置のもと!L49,IF($A$1=7,部首の位置のもと!L58,IF($A$1=8,部首の位置のもと!L67,\"\"))))))))=\"\",\"\",IF($A$1=1,部首の位置のもと!L4,IF($A$1=2,部首の位置のもと!L13,IF(部首と位置!$A$1=3,部首の位置のもと!L22,IF($A$1=4,部首の位置のもと!L31,IF(部首と位置!$A$1=5,部首の位置のもと!L40,IF($A$1=6,部首の位置のもと!L49,IF($A$1=7,部首の位置のもと!L58,IF($A$1=8,部首の位置のもと!L67,\"\")))))))))","v":""},{"$f":"IF(IF($A$1=1,部首の位置のもと!M4,IF($A$1=2,部首の位置のもと!M13,IF(部首と位置!$A$1=3,部首の位置のもと!M22,IF($A$1=4,部首の位置のもと!M31,IF(部首と位置!$A$1=5,部首の位置のもと!M40,IF($A$1=6,部首の位置のもと!M49,IF($A$1=7,部首の位置のもと!M58,IF($A$1=8,部首の位置のもと!M67,\"\"))))))))=\"\",\"\",IF($A$1=1,部首の位置のもと!M4,IF($A$1=2,部首の位置のもと!M13,IF(部首と位置!$A$1=3,部首の位置のもと!M22,IF($A$1=4,部首の位置のもと!M31,IF(部首と位置!$A$1=5,部首の位置のもと!M40,IF($A$1=6,部首の位置のもと!M49,IF($A$1=7,部首の位置のもと!M58,IF($A$1=8,部首の位置のもと!M67,\"\")))))))))","v":""},{"$f":"IF(IF($A$1=1,部首の位置のもと!N4,IF($A$1=2,部首の位置のもと!N13,IF(部首と位置!$A$1=3,部首の位置のもと!N22,IF($A$1=4,部首の位置のもと!N31,IF(部首と位置!$A$1=5,部首の位置のもと!N40,IF($A$1=6,部首の位置のもと!N49,IF($A$1=7,部首の位置のもと!N58,IF($A$1=8,部首の位置のもと!N67,\"\"))))))))=\"\",\"\",IF($A$1=1,部首の位置のもと!N4,IF($A$1=2,部首の位置のもと!N13,IF(部首と位置!$A$1=3,部首の位置のもと!N22,IF($A$1=4,部首の位置のもと!N31,IF(部首と位置!$A$1=5,部首の位置のもと!N40,IF($A$1=6,部首の位置のもと!N49,IF($A$1=7,部首の位置のもと!N58,IF($A$1=8,部首の位置のもと!N67,\"\")))))))))","v":""}]
[null,null,null,{"$f":"IF(IF($A$1=1,部首の位置のもと!G5,IF($A$1=2,部首の位置のもと!G14,IF(部首と位置!$A$1=3,部首の位置のもと!G23,IF($A$1=4,部首の位置のもと!G32,IF(部首と位置!$A$1=5,部首の位置のもと!G41,IF($A$1=6,部首の位置のもと!G50,IF($A$1=7,部首の位置のもと!G59,IF($A$1=8,部首の位置のもと!G68,\"\"))))))))=\"\",\"\",IF($A$1=1,部首の位置のもと!G5,IF($A$1=2,部首の位置のもと!G14,IF(部首と位置!$A$1=3,部首の位置のもと!G23,IF($A$1=4,部首の位置のもと!G32,IF(部首と位置!$A$1=5,部首の位置のもと!G41,IF($A$1=6,部首の位置のもと!G50,IF($A$1=7,部首の位置のもと!G59,IF($A$1=8,部首の位置のもと!G68,\"\")))))))))","v":""},{"$f":"IF(IF($A$1=1,部首の位置のもと!H5,IF($A$1=2,部首の位置のもと!H14,IF(部首と位置!$A$1=3,部首の位置のもと!H23,IF($A$1=4,部首の位置のもと!H32,IF(部首と位置!$A$1=5,部首の位置のもと!H41,IF($A$1=6,部首の位置のもと!H50,IF($A$1=7,部首の位置のもと!H59,IF($A$1=8,部首の位置のもと!H68,\"\"))))))))=\"\",\"\",IF($A$1=1,部首の位置のもと!H5,IF($A$1=2,部首の位置のもと!H14,IF(部首と位置!$A$1=3,部首の位置のもと!H23,IF($A$1=4,部首の位置のもと!H32,IF(部首と位置!$A$1=5,部首の位置のもと!H41,IF($A$1=6,部首の位置のもと!H50,IF($A$1=7,部首の位置のもと!H59,IF($A$1=8,部首の位置のもと!H68,\"\")))))))))","v":""},{"$f":"IF(IF($A$1=1,部首の位置のもと!I5,IF($A$1=2,部首の位置のもと!I14,IF(部首と位置!$A$1=3,部首の位置のもと!I23,IF($A$1=4,部首の位置のもと!I32,IF(部首と位置!$A$1=5,部首の位置のもと!I41,IF($A$1=6,部首の位置のもと!I50,IF($A$1=7,部首の位置のもと!I59,IF($A$1=8,部首の位置のもと!I68,\"\"))))))))=\"\",\"\",IF($A$1=1,部首の位置のもと!I5,IF($A$1=2,部首の位置のもと!I14,IF(部首と位置!$A$1=3,部首の位置のもと!I23,IF($A$1=4,部首の位置のもと!I32,IF(部首と位置!$A$1=5,部首の位置のもと!I41,IF($A$1=6,部首の位置のもと!I50,IF($A$1=7,部首の位置のもと!I59,IF($A$1=8,部首の位置のもと!I68,\"\")))))))))","v":""},{"$f":"IF(IF($A$1=1,部首の位置のもと!J5,IF($A$1=2,部首の位置のもと!J14,IF(部首と位置!$A$1=3,部首の位置のもと!J23,IF($A$1=4,部首の位置のもと!J32,IF(部首と位置!$A$1=5,部首の位置のもと!J41,IF($A$1=6,部首の位置のもと!J50,IF($A$1=7,部首の位置のもと!J59,IF($A$1=8,部首の位置のもと!J68,\"\"))))))))=\"\",\"\",IF($A$1=1,部首の位置のもと!J5,IF($A$1=2,部首の位置のもと!J14,IF(部首と位置!$A$1=3,部首の位置のもと!J23,IF($A$1=4,部首の位置のもと!J32,IF(部首と位置!$A$1=5,部首の位置のもと!J41,IF($A$1=6,部首の位置のもと!J50,IF($A$1=7,部首の位置のもと!J59,IF($A$1=8,部首の位置のもと!J68,\"\")))))))))","v":""},{"$f":"IF(IF($A$1=1,部首の位置のもと!K5,IF($A$1=2,部首の位置のもと!K14,IF(部首と位置!$A$1=3,部首の位置のもと!K23,IF($A$1=4,部首の位置のもと!K32,IF(部首と位置!$A$1=5,部首の位置のもと!K41,IF($A$1=6,部首の位置のもと!K50,IF($A$1=7,部首の位置のもと!K59,IF($A$1=8,部首の位置のもと!K68,\"\"))))))))=\"\",\"\",IF($A$1=1,部首の位置のもと!K5,IF($A$1=2,部首の位置のもと!K14,IF(部首と位置!$A$1=3,部首の位置のもと!K23,IF($A$1=4,部首の位置のもと!K32,IF(部首と位置!$A$1=5,部首の位置のもと!K41,IF($A$1=6,部首の位置のもと!K50,IF($A$1=7,部首の位置のもと!K59,IF($A$1=8,部首の位置のもと!K68,\"\")))))))))","v":""},{"$f":"IF(IF($A$1=1,部首の位置のもと!L5,IF($A$1=2,部首の位置のもと!L14,IF(部首と位置!$A$1=3,部首の位置のもと!L23,IF($A$1=4,部首の位置のもと!L32,IF(部首と位置!$A$1=5,部首の位置のもと!L41,IF($A$1=6,部首の位置のもと!L50,IF($A$1=7,部首の位置のもと!L59,IF($A$1=8,部首の位置のもと!L68,\"\"))))))))=\"\",\"\",IF($A$1=1,部首の位置のもと!L5,IF($A$1=2,部首の位置のもと!L14,IF(部首と位置!$A$1=3,部首の位置のもと!L23,IF($A$1=4,部首の位置のもと!L32,IF(部首と位置!$A$1=5,部首の位置のもと!L41,IF($A$1=6,部首の位置のもと!L50,IF($A$1=7,部首の位置のもと!L59,IF($A$1=8,部首の位置のもと!L68,\"\")))))))))","v":""},{"$f":"IF(IF($A$1=1,部首の位置のもと!M5,IF($A$1=2,部首の位置のもと!M14,IF(部首と位置!$A$1=3,部首の位置のもと!M23,IF($A$1=4,部首の位置のもと!M32,IF(部首と位置!$A$1=5,部首の位置のもと!M41,IF($A$1=6,部首の位置のもと!M50,IF($A$1=7,部首の位置のもと!M59,IF($A$1=8,部首の位置のもと!M68,\"\"))))))))=\"\",\"\",IF($A$1=1,部首の位置のもと!M5,IF($A$1=2,部首の位置のもと!M14,IF(部首と位置!$A$1=3,部首の位置のもと!M23,IF($A$1=4,部首の位置のもと!M32,IF(部首と位置!$A$1=5,部首の位置のもと!M41,IF($A$1=6,部首の位置のもと!M50,IF($A$1=7,部首の位置のもと!M59,IF($A$1=8,部首の位置のもと!M68,\"\")))))))))","v":""},{"$f":"IF(IF($A$1=1,部首の位置のもと!N5,IF($A$1=2,部首の位置のもと!N14,IF(部首と位置!$A$1=3,部首の位置のもと!N23,IF($A$1=4,部首の位置のもと!N32,IF(部首と位置!$A$1=5,部首の位置のもと!N41,IF($A$1=6,部首の位置のもと!N50,IF($A$1=7,部首の位置のもと!N59,IF($A$1=8,部首の位置のもと!N68,\"\"))))))))=\"\",\"\",IF($A$1=1,部首の位置のもと!N5,IF($A$1=2,部首の位置のもと!N14,IF(部首と位置!$A$1=3,部首の位置のもと!N23,IF($A$1=4,部首の位置のもと!N32,IF(部首と位置!$A$1=5,部首の位置のもと!N41,IF($A$1=6,部首の位置のもと!N50,IF($A$1=7,部首の位置のもと!N59,IF($A$1=8,部首の位置のもと!N68,\"\")))))))))","v":""}]
[null,null,null,{"$f":"IF(IF($A$1=1,部首の位置のもと!G6,IF($A$1=2,部首の位置のもと!G15,IF(部首と位置!$A$1=3,部首の位置のもと!G24,IF($A$1=4,部首の位置のもと!G33,IF(部首と位置!$A$1=5,部首の位置のもと!G42,IF($A$1=6,部首の位置のもと!G51,IF($A$1=7,部首の位置のもと!G60,IF($A$1=8,部首の位置のもと!G69,\"\"))))))))=\"\",\"\",IF($A$1=1,部首の位置のもと!G6,IF($A$1=2,部首の位置のもと!G15,IF(部首と位置!$A$1=3,部首の位置のもと!G24,IF($A$1=4,部首の位置のもと!G33,IF(部首と位置!$A$1=5,部首の位置のもと!G42,IF($A$1=6,部首の位置のもと!G51,IF($A$1=7,部首の位置のもと!G60,IF($A$1=8,部首の位置のもと!G69,\"\")))))))))","v":""},{"$f":"IF(IF($A$1=1,部首の位置のもと!H6,IF($A$1=2,部首の位置のもと!H15,IF(部首と位置!$A$1=3,部首の位置のもと!H24,IF($A$1=4,部首の位置のもと!H33,IF(部首と位置!$A$1=5,部首の位置のもと!H42,IF($A$1=6,部首の位置のもと!H51,IF($A$1=7,部首の位置のもと!H60,IF($A$1=8,部首の位置のもと!H69,\"\"))))))))=\"\",\"\",IF($A$1=1,部首の位置のもと!H6,IF($A$1=2,部首の位置のもと!H15,IF(部首と位置!$A$1=3,部首の位置のもと!H24,IF($A$1=4,部首の位置のもと!H33,IF(部首と位置!$A$1=5,部首の位置のもと!H42,IF($A$1=6,部首の位置のもと!H51,IF($A$1=7,部首の位置のもと!H60,IF($A$1=8,部首の位置のもと!H69,\"\")))))))))","v":""},{"$f":"IF(IF($A$1=1,部首の位置のもと!I6,IF($A$1=2,部首の位置のもと!I15,IF(部首と位置!$A$1=3,部首の位置のもと!I24,IF($A$1=4,部首の位置のもと!I33,IF(部首と位置!$A$1=5,部首の位置のもと!I42,IF($A$1=6,部首の位置のもと!I51,IF($A$1=7,部首の位置のもと!I60,IF($A$1=8,部首の位置のもと!I69,\"\"))))))))=\"\",\"\",IF($A$1=1,部首の位置のもと!I6,IF($A$1=2,部首の位置のもと!I15,IF(部首と位置!$A$1=3,部首の位置のもと!I24,IF($A$1=4,部首の位置のもと!I33,IF(部首と位置!$A$1=5,部首の位置のもと!I42,IF($A$1=6,部首の位置のもと!I51,IF($A$1=7,部首の位置のもと!I60,IF($A$1=8,部首の位置のもと!I69,\"\")))))))))","v":""},{"$f":"IF(IF($A$1=1,部首の位置のもと!J6,IF($A$1=2,部首の位置のもと!J15,IF(部首と位置!$A$1=3,部首の位置のもと!J24,IF($A$1=4,部首の位置のもと!J33,IF(部首と位置!$A$1=5,部首の位置のもと!J42,IF($A$1=6,部首の位置のもと!J51,IF($A$1=7,部首の位置のもと!J60,IF($A$1=8,部首の位置のもと!J69,\"\"))))))))=\"\",\"\",IF($A$1=1,部首の位置のもと!J6,IF($A$1=2,部首の位置のもと!J15,IF(部首と位置!$A$1=3,部首の位置のもと!J24,IF($A$1=4,部首の位置のもと!J33,IF(部首と位置!$A$1=5,部首の位置のもと!J42,IF($A$1=6,部首の位置のもと!J51,IF($A$1=7,部首の位置のもと!J60,IF($A$1=8,部首の位置のもと!J69,\"\")))))))))","v":""},{"$f":"IF(IF($A$1=1,部首の位置のもと!K6,IF($A$1=2,部首の位置のもと!K15,IF(部首と位置!$A$1=3,部首の位置のもと!K24,IF($A$1=4,部首の位置のもと!K33,IF(部首と位置!$A$1=5,部首の位置のもと!K42,IF($A$1=6,部首の位置のもと!K51,IF($A$1=7,部首の位置のもと!K60,IF($A$1=8,部首の位置のもと!K69,\"\"))))))))=\"\",\"\",IF($A$1=1,部首の位置のもと!K6,IF($A$1=2,部首の位置のもと!K15,IF(部首と位置!$A$1=3,部首の位置のもと!K24,IF($A$1=4,部首の位置のもと!K33,IF(部首と位置!$A$1=5,部首の位置のもと!K42,IF($A$1=6,部首の位置のもと!K51,IF($A$1=7,部首の位置のもと!K60,IF($A$1=8,部首の位置のもと!K69,\"\")))))))))","v":""},{"$f":"IF(IF($A$1=1,部首の位置のもと!L6,IF($A$1=2,部首の位置のもと!L15,IF(部首と位置!$A$1=3,部首の位置のもと!L24,IF($A$1=4,部首の位置のもと!L33,IF(部首と位置!$A$1=5,部首の位置のもと!L42,IF($A$1=6,部首の位置のもと!L51,IF($A$1=7,部首の位置のもと!L60,IF($A$1=8,部首の位置のもと!L69,\"\"))))))))=\"\",\"\",IF($A$1=1,部首の位置のもと!L6,IF($A$1=2,部首の位置のもと!L15,IF(部首と位置!$A$1=3,部首の位置のもと!L24,IF($A$1=4,部首の位置のもと!L33,IF(部首と位置!$A$1=5,部首の位置のもと!L42,IF($A$1=6,部首の位置のもと!L51,IF($A$1=7,部首の位置のもと!L60,IF($A$1=8,部首の位置のもと!L69,\"\")))))))))","v":""},{"$f":"IF(IF($A$1=1,部首の位置のもと!M6,IF($A$1=2,部首の位置のもと!M15,IF(部首と位置!$A$1=3,部首の位置のもと!M24,IF($A$1=4,部首の位置のもと!M33,IF(部首と位置!$A$1=5,部首の位置のもと!M42,IF($A$1=6,部首の位置のもと!M51,IF($A$1=7,部首の位置のもと!M60,IF($A$1=8,部首の位置のもと!M69,\"\"))))))))=\"\",\"\",IF($A$1=1,部首の位置のもと!M6,IF($A$1=2,部首の位置のもと!M15,IF(部首と位置!$A$1=3,部首の位置のもと!M24,IF($A$1=4,部首の位置のもと!M33,IF(部首と位置!$A$1=5,部首の位置のもと!M42,IF($A$1=6,部首の位置のもと!M51,IF($A$1=7,部首の位置のもと!M60,IF($A$1=8,部首の位置のもと!M69,\"\")))))))))","v":""},{"$f":"IF(IF($A$1=1,部首の位置のもと!N6,IF($A$1=2,部首の位置のもと!N15,IF(部首と位置!$A$1=3,部首の位置のもと!N24,IF($A$1=4,部首の位置のもと!N33,IF(部首と位置!$A$1=5,部首の位置のもと!N42,IF($A$1=6,部首の位置のもと!N51,IF($A$1=7,部首の位置のもと!N60,IF($A$1=8,部首の位置のもと!N69,\"\"))))))))=\"\",\"\",IF($A$1=1,部首の位置のもと!N6,IF($A$1=2,部首の位置のもと!N15,IF(部首と位置!$A$1=3,部首の位置のもと!N24,IF($A$1=4,部首の位置のもと!N33,IF(部首と位置!$A$1=5,部首の位置のもと!N42,IF($A$1=6,部首の位置のもと!N51,IF($A$1=7,部首の位置のもと!N60,IF($A$1=8,部首の位置のもと!N69,\"\")))))))))","v":""}]
[null,null,null,{"$f":"IF(IF($A$1=1,部首の位置のもと!G7,IF($A$1=2,部首の位置のもと!G16,IF(部首と位置!$A$1=3,部首の位置のもと!G25,IF($A$1=4,部首の位置のもと!G34,IF(部首と位置!$A$1=5,部首の位置のもと!G43,IF($A$1=6,部首の位置のもと!G52,IF($A$1=7,部首の位置のもと!G61,IF($A$1=8,部首の位置のもと!G70,\"\"))))))))=\"\",\"\",IF($A$1=1,部首の位置のもと!G7,IF($A$1=2,部首の位置のもと!G16,IF(部首と位置!$A$1=3,部首の位置のもと!G25,IF($A$1=4,部首の位置のもと!G34,IF(部首と位置!$A$1=5,部首の位置のもと!G43,IF($A$1=6,部首の位置のもと!G52,IF($A$1=7,部首の位置のもと!G61,IF($A$1=8,部首の位置のもと!G70,\"\")))))))))","v":""},{"$f":"IF(IF($A$1=1,部首の位置のもと!H7,IF($A$1=2,部首の位置のもと!H16,IF(部首と位置!$A$1=3,部首の位置のもと!H25,IF($A$1=4,部首の位置のもと!H34,IF(部首と位置!$A$1=5,部首の位置のもと!H43,IF($A$1=6,部首の位置のもと!H52,IF($A$1=7,部首の位置のもと!H61,IF($A$1=8,部首の位置のもと!H70,\"\"))))))))=\"\",\"\",IF($A$1=1,部首の位置のもと!H7,IF($A$1=2,部首の位置のもと!H16,IF(部首と位置!$A$1=3,部首の位置のもと!H25,IF($A$1=4,部首の位置のもと!H34,IF(部首と位置!$A$1=5,部首の位置のもと!H43,IF($A$1=6,部首の位置のもと!H52,IF($A$1=7,部首の位置のもと!H61,IF($A$1=8,部首の位置のもと!H70,\"\")))))))))","v":""},{"$f":"IF(IF($A$1=1,部首の位置のもと!I7,IF($A$1=2,部首の位置のもと!I16,IF(部首と位置!$A$1=3,部首の位置のもと!I25,IF($A$1=4,部首の位置のもと!I34,IF(部首と位置!$A$1=5,部首の位置のもと!I43,IF($A$1=6,部首の位置のもと!I52,IF($A$1=7,部首の位置のもと!I61,IF($A$1=8,部首の位置のもと!I70,\"\"))))))))=\"\",\"\",IF($A$1=1,部首の位置のもと!I7,IF($A$1=2,部首の位置のもと!I16,IF(部首と位置!$A$1=3,部首の位置のもと!I25,IF($A$1=4,部首の位置のもと!I34,IF(部首と位置!$A$1=5,部首の位置のもと!I43,IF($A$1=6,部首の位置のもと!I52,IF($A$1=7,部首の位置のもと!I61,IF($A$1=8,部首の位置のもと!I70,\"\")))))))))","v":""},{"$f":"IF(IF($A$1=1,部首の位置のもと!J7,IF($A$1=2,部首の位置のもと!J16,IF(部首と位置!$A$1=3,部首の位置のもと!J25,IF($A$1=4,部首の位置のもと!J34,IF(部首と位置!$A$1=5,部首の位置のもと!J43,IF($A$1=6,部首の位置のもと!J52,IF($A$1=7,部首の位置のもと!J61,IF($A$1=8,部首の位置のもと!J70,\"\"))))))))=\"\",\"\",IF($A$1=1,部首の位置のもと!J7,IF($A$1=2,部首の位置のもと!J16,IF(部首と位置!$A$1=3,部首の位置のもと!J25,IF($A$1=4,部首の位置のもと!J34,IF(部首と位置!$A$1=5,部首の位置のもと!J43,IF($A$1=6,部首の位置のもと!J52,IF($A$1=7,部首の位置のもと!J61,IF($A$1=8,部首の位置のもと!J70,\"\")))))))))","v":""},{"$f":"IF(IF($A$1=1,部首の位置のもと!K7,IF($A$1=2,部首の位置のもと!K16,IF(部首と位置!$A$1=3,部首の位置のもと!K25,IF($A$1=4,部首の位置のもと!K34,IF(部首と位置!$A$1=5,部首の位置のもと!K43,IF($A$1=6,部首の位置のもと!K52,IF($A$1=7,部首の位置のもと!K61,IF($A$1=8,部首の位置のもと!K70,\"\"))))))))=\"\",\"\",IF($A$1=1,部首の位置のもと!K7,IF($A$1=2,部首の位置のもと!K16,IF(部首と位置!$A$1=3,部首の位置のもと!K25,IF($A$1=4,部首の位置のもと!K34,IF(部首と位置!$A$1=5,部首の位置のもと!K43,IF($A$1=6,部首の位置のもと!K52,IF($A$1=7,部首の位置のもと!K61,IF($A$1=8,部首の位置のもと!K70,\"\")))))))))","v":""},{"$f":"IF(IF($A$1=1,部首の位置のもと!L7,IF($A$1=2,部首の位置のもと!L16,IF(部首と位置!$A$1=3,部首の位置のもと!L25,IF($A$1=4,部首の位置のもと!L34,IF(部首と位置!$A$1=5,部首の位置のもと!L43,IF($A$1=6,部首の位置のもと!L52,IF($A$1=7,部首の位置のもと!L61,IF($A$1=8,部首の位置のもと!L70,\"\"))))))))=\"\",\"\",IF($A$1=1,部首の位置のもと!L7,IF($A$1=2,部首の位置のもと!L16,IF(部首と位置!$A$1=3,部首の位置のもと!L25,IF($A$1=4,部首の位置のもと!L34,IF(部首と位置!$A$1=5,部首の位置のもと!L43,IF($A$1=6,部首の位置のもと!L52,IF($A$1=7,部首の位置のもと!L61,IF($A$1=8,部首の位置のもと!L70,\"\")))))))))","v":""},{"$f":"IF(IF($A$1=1,部首の位置のもと!M7,IF($A$1=2,部首の位置のもと!M16,IF(部首と位置!$A$1=3,部首の位置のもと!M25,IF($A$1=4,部首の位置のもと!M34,IF(部首と位置!$A$1=5,部首の位置のもと!M43,IF($A$1=6,部首の位置のもと!M52,IF($A$1=7,部首の位置のもと!M61,IF($A$1=8,部首の位置のもと!M70,\"\"))))))))=\"\",\"\",IF($A$1=1,部首の位置のもと!M7,IF($A$1=2,部首の位置のもと!M16,IF(部首と位置!$A$1=3,部首の位置のもと!M25,IF($A$1=4,部首の位置のもと!M34,IF(部首と位置!$A$1=5,部首の位置のもと!M43,IF($A$1=6,部首の位置のもと!M52,IF($A$1=7,部首の位置のもと!M61,IF($A$1=8,部首の位置のもと!M70,\"\")))))))))","v":""},{"$f":"IF(IF($A$1=1,部首の位置のもと!N7,IF($A$1=2,部首の位置のもと!N16,IF(部首と位置!$A$1=3,部首の位置のもと!N25,IF($A$1=4,部首の位置のもと!N34,IF(部首と位置!$A$1=5,部首の位置のもと!N43,IF($A$1=6,部首の位置のもと!N52,IF($A$1=7,部首の位置のもと!N61,IF($A$1=8,部首の位置のもと!N70,\"\"))))))))=\"\",\"\",IF($A$1=1,部首の位置のもと!N7,IF($A$1=2,部首の位置のもと!N16,IF(部首と位置!$A$1=3,部首の位置のもと!N25,IF($A$1=4,部首の位置のもと!N34,IF(部首と位置!$A$1=5,部首の位置のもと!N43,IF($A$1=6,部首の位置のもと!N52,IF($A$1=7,部首の位置のもと!N61,IF($A$1=8,部首の位置のもと!N70,\"\")))))))))","v":""}]
[null,null,null,{"$f":"IF(IF($A$1=1,部首の位置のもと!G8,IF($A$1=2,部首の位置のもと!G17,IF(部首と位置!$A$1=3,部首の位置のもと!G26,IF($A$1=4,部首の位置のもと!G35,IF(部首と位置!$A$1=5,部首の位置のもと!G44,IF($A$1=6,部首の位置のもと!G53,IF($A$1=7,部首の位置のもと!G62,IF($A$1=8,部首の位置のもと!G71,\"\"))))))))=\"\",\"\",IF($A$1=1,部首の位置のもと!G8,IF($A$1=2,部首の位置のもと!G17,IF(部首と位置!$A$1=3,部首の位置のもと!G26,IF($A$1=4,部首の位置のもと!G35,IF(部首と位置!$A$1=5,部首の位置のもと!G44,IF($A$1=6,部首の位置のもと!G53,IF($A$1=7,部首の位置のもと!G62,IF($A$1=8,部首の位置のもと!G71,\"\")))))))))","v":""},{"$f":"IF(IF($A$1=1,部首の位置のもと!H8,IF($A$1=2,部首の位置のもと!H17,IF(部首と位置!$A$1=3,部首の位置のもと!H26,IF($A$1=4,部首の位置のもと!H35,IF(部首と位置!$A$1=5,部首の位置のもと!H44,IF($A$1=6,部首の位置のもと!H53,IF($A$1=7,部首の位置のもと!H62,IF($A$1=8,部首の位置のもと!H71,\"\"))))))))=\"\",\"\",IF($A$1=1,部首の位置のもと!H8,IF($A$1=2,部首の位置のもと!H17,IF(部首と位置!$A$1=3,部首の位置のもと!H26,IF($A$1=4,部首の位置のもと!H35,IF(部首と位置!$A$1=5,部首の位置のもと!H44,IF($A$1=6,部首の位置のもと!H53,IF($A$1=7,部首の位置のもと!H62,IF($A$1=8,部首の位置のもと!H71,\"\")))))))))","v":""},{"$f":"IF(IF($A$1=1,部首の位置のもと!I8,IF($A$1=2,部首の位置のもと!I17,IF(部首と位置!$A$1=3,部首の位置のもと!I26,IF($A$1=4,部首の位置のもと!I35,IF(部首と位置!$A$1=5,部首の位置のもと!I44,IF($A$1=6,部首の位置のもと!I53,IF($A$1=7,部首の位置のもと!I62,IF($A$1=8,部首の位置のもと!I71,\"\"))))))))=\"\",\"\",IF($A$1=1,部首の位置のもと!I8,IF($A$1=2,部首の位置のもと!I17,IF(部首と位置!$A$1=3,部首の位置のもと!I26,IF($A$1=4,部首の位置のもと!I35,IF(部首と位置!$A$1=5,部首の位置のもと!I44,IF($A$1=6,部首の位置のもと!I53,IF($A$1=7,部首の位置のもと!I62,IF($A$1=8,部首の位置のもと!I71,\"\")))))))))","v":""},{"$f":"IF(IF($A$1=1,部首の位置のもと!J8,IF($A$1=2,部首の位置のもと!J17,IF(部首と位置!$A$1=3,部首の位置のもと!J26,IF($A$1=4,部首の位置のもと!J35,IF(部首と位置!$A$1=5,部首の位置のもと!J44,IF($A$1=6,部首の位置のもと!J53,IF($A$1=7,部首の位置のもと!J62,IF($A$1=8,部首の位置のもと!J71,\"\"))))))))=\"\",\"\",IF($A$1=1,部首の位置のもと!J8,IF($A$1=2,部首の位置のもと!J17,IF(部首と位置!$A$1=3,部首の位置のもと!J26,IF($A$1=4,部首の位置のもと!J35,IF(部首と位置!$A$1=5,部首の位置のもと!J44,IF($A$1=6,部首の位置のもと!J53,IF($A$1=7,部首の位置のもと!J62,IF($A$1=8,部首の位置のもと!J71,\"\")))))))))","v":""},{"$f":"IF(IF($A$1=1,部首の位置のもと!K8,IF($A$1=2,部首の位置のもと!K17,IF(部首と位置!$A$1=3,部首の位置のもと!K26,IF($A$1=4,部首の位置のもと!K35,IF(部首と位置!$A$1=5,部首の位置のもと!K44,IF($A$1=6,部首の位置のもと!K53,IF($A$1=7,部首の位置のもと!K62,IF($A$1=8,部首の位置のもと!K71,\"\"))))))))=\"\",\"\",IF($A$1=1,部首の位置のもと!K8,IF($A$1=2,部首の位置のもと!K17,IF(部首と位置!$A$1=3,部首の位置のもと!K26,IF($A$1=4,部首の位置のもと!K35,IF(部首と位置!$A$1=5,部首の位置のもと!K44,IF($A$1=6,部首の位置のもと!K53,IF($A$1=7,部首の位置のもと!K62,IF($A$1=8,部首の位置のもと!K71,\"\")))))))))","v":""},{"$f":"IF(IF($A$1=1,部首の位置のもと!L8,IF($A$1=2,部首の位置のもと!L17,IF(部首と位置!$A$1=3,部首の位置のもと!L26,IF($A$1=4,部首の位置のもと!L35,IF(部首と位置!$A$1=5,部首の位置のもと!L44,IF($A$1=6,部首の位置のもと!L53,IF($A$1=7,部首の位置のもと!L62,IF($A$1=8,部首の位置のもと!L71,\"\"))))))))=\"\",\"\",IF($A$1=1,部首の位置のもと!L8,IF($A$1=2,部首の位置のもと!L17,IF(部首と位置!$A$1=3,部首の位置のもと!L26,IF($A$1=4,部首の位置のもと!L35,IF(部首と位置!$A$1=5,部首の位置のもと!L44,IF($A$1=6,部首の位置のもと!L53,IF($A$1=7,部首の位置のもと!L62,IF($A$1=8,部首の位置のもと!L71,\"\")))))))))","v":""},{"$f":"IF(IF($A$1=1,部首の位置のもと!M8,IF($A$1=2,部首の位置のもと!M17,IF(部首と位置!$A$1=3,部首の位置のもと!M26,IF($A$1=4,部首の位置のもと!M35,IF(部首と位置!$A$1=5,部首の位置のもと!M44,IF($A$1=6,部首の位置のもと!M53,IF($A$1=7,部首の位置のもと!M62,IF($A$1=8,部首の位置のもと!M71,\"\"))))))))=\"\",\"\",IF($A$1=1,部首の位置のもと!M8,IF($A$1=2,部首の位置のもと!M17,IF(部首と位置!$A$1=3,部首の位置のもと!M26,IF($A$1=4,部首の位置のもと!M35,IF(部首と位置!$A$1=5,部首の位置のもと!M44,IF($A$1=6,部首の位置のもと!M53,IF($A$1=7,部首の位置のもと!M62,IF($A$1=8,部首の位置のもと!M71,\"\")))))))))","v":""},{"$f":"IF(IF($A$1=1,部首の位置のもと!N8,IF($A$1=2,部首の位置のもと!N17,IF(部首と位置!$A$1=3,部首の位置のもと!N26,IF($A$1=4,部首の位置のもと!N35,IF(部首と位置!$A$1=5,部首の位置のもと!N44,IF($A$1=6,部首の位置のもと!N53,IF($A$1=7,部首の位置のもと!N62,IF($A$1=8,部首の位置のもと!N71,\"\"))))))))=\"\",\"\",IF($A$1=1,部首の位置のもと!N8,IF($A$1=2,部首の位置のもと!N17,IF(部首と位置!$A$1=3,部首の位置のもと!N26,IF($A$1=4,部首の位置のもと!N35,IF(部首と位置!$A$1=5,部首の位置のもと!N44,IF($A$1=6,部首の位置のもと!N53,IF($A$1=7,部首の位置のもと!N62,IF($A$1=8,部首の位置のもと!N71,\"\")))))))))","v":""}]
[null,null,null,{"$f":"IF(IF($A$1=1,部首の位置のもと!G9,IF($A$1=2,部首の位置のもと!G18,IF(部首と位置!$A$1=3,部首の位置のもと!G27,IF($A$1=4,部首の位置のもと!G36,IF(部首と位置!$A$1=5,部首の位置のもと!G45,IF($A$1=6,部首の位置のもと!G54,IF($A$1=7,部首の位置のもと!G63,IF($A$1=8,部首の位置のもと!G72,\"\"))))))))=\"\",\"\",IF($A$1=1,部首の位置のもと!G9,IF($A$1=2,部首の位置のもと!G18,IF(部首と位置!$A$1=3,部首の位置のもと!G27,IF($A$1=4,部首の位置のもと!G36,IF(部首と位置!$A$1=5,部首の位置のもと!G45,IF($A$1=6,部首の位置のもと!G54,IF($A$1=7,部首の位置のもと!G63,IF($A$1=8,部首の位置のもと!G72,\"\")))))))))","v":""},{"$f":"IF(IF($A$1=1,部首の位置のもと!H9,IF($A$1=2,部首の位置のもと!H18,IF(部首と位置!$A$1=3,部首の位置のもと!H27,IF($A$1=4,部首の位置のもと!H36,IF(部首と位置!$A$1=5,部首の位置のもと!H45,IF($A$1=6,部首の位置のもと!H54,IF($A$1=7,部首の位置のもと!H63,IF($A$1=8,部首の位置のもと!H72,\"\"))))))))=\"\",\"\",IF($A$1=1,部首の位置のもと!H9,IF($A$1=2,部首の位置のもと!H18,IF(部首と位置!$A$1=3,部首の位置のもと!H27,IF($A$1=4,部首の位置のもと!H36,IF(部首と位置!$A$1=5,部首の位置のもと!H45,IF($A$1=6,部首の位置のもと!H54,IF($A$1=7,部首の位置のもと!H63,IF($A$1=8,部首の位置のもと!H72,\"\")))))))))","v":""},{"$f":"IF(IF($A$1=1,部首の位置のもと!I9,IF($A$1=2,部首の位置のもと!I18,IF(部首と位置!$A$1=3,部首の位置のもと!I27,IF($A$1=4,部首の位置のもと!I36,IF(部首と位置!$A$1=5,部首の位置のもと!I45,IF($A$1=6,部首の位置のもと!I54,IF($A$1=7,部首の位置のもと!I63,IF($A$1=8,部首の位置のもと!I72,\"\"))))))))=\"\",\"\",IF($A$1=1,部首の位置のもと!I9,IF($A$1=2,部首の位置のもと!I18,IF(部首と位置!$A$1=3,部首の位置のもと!I27,IF($A$1=4,部首の位置のもと!I36,IF(部首と位置!$A$1=5,部首の位置のもと!I45,IF($A$1=6,部首の位置のもと!I54,IF($A$1=7,部首の位置のもと!I63,IF($A$1=8,部首の位置のもと!I72,\"\")))))))))","v":""},{"$f":"IF(IF($A$1=1,部首の位置のもと!J9,IF($A$1=2,部首の位置のもと!J18,IF(部首と位置!$A$1=3,部首の位置のもと!J27,IF($A$1=4,部首の位置のもと!J36,IF(部首と位置!$A$1=5,部首の位置のもと!J45,IF($A$1=6,部首の位置のもと!J54,IF($A$1=7,部首の位置のもと!J63,IF($A$1=8,部首の位置のもと!J72,\"\"))))))))=\"\",\"\",IF($A$1=1,部首の位置のもと!J9,IF($A$1=2,部首の位置のもと!J18,IF(部首と位置!$A$1=3,部首の位置のもと!J27,IF($A$1=4,部首の位置のもと!J36,IF(部首と位置!$A$1=5,部首の位置のもと!J45,IF($A$1=6,部首の位置のもと!J54,IF($A$1=7,部首の位置のもと!J63,IF($A$1=8,部首の位置のもと!J72,\"\")))))))))","v":""},{"$f":"IF(IF($A$1=1,部首の位置のもと!K9,IF($A$1=2,部首の位置のもと!K18,IF(部首と位置!$A$1=3,部首の位置のもと!K27,IF($A$1=4,部首の位置のもと!K36,IF(部首と位置!$A$1=5,部首の位置のもと!K45,IF($A$1=6,部首の位置のもと!K54,IF($A$1=7,部首の位置のもと!K63,IF($A$1=8,部首の位置のもと!K72,\"\"))))))))=\"\",\"\",IF($A$1=1,部首の位置のもと!K9,IF($A$1=2,部首の位置のもと!K18,IF(部首と位置!$A$1=3,部首の位置のもと!K27,IF($A$1=4,部首の位置のもと!K36,IF(部首と位置!$A$1=5,部首の位置のもと!K45,IF($A$1=6,部首の位置のもと!K54,IF($A$1=7,部首の位置のもと!K63,IF($A$1=8,部首の位置のもと!K72,\"\")))))))))","v":""},{"$f":"IF(IF($A$1=1,部首の位置のもと!L9,IF($A$1=2,部首の位置のもと!L18,IF(部首と位置!$A$1=3,部首の位置のもと!L27,IF($A$1=4,部首の位置のもと!L36,IF(部首と位置!$A$1=5,部首の位置のもと!L45,IF($A$1=6,部首の位置のもと!L54,IF($A$1=7,部首の位置のもと!L63,IF($A$1=8,部首の位置のもと!L72,\"\"))))))))=\"\",\"\",IF($A$1=1,部首の位置のもと!L9,IF($A$1=2,部首の位置のもと!L18,IF(部首と位置!$A$1=3,部首の位置のもと!L27,IF($A$1=4,部首の位置のもと!L36,IF(部首と位置!$A$1=5,部首の位置のもと!L45,IF($A$1=6,部首の位置のもと!L54,IF($A$1=7,部首の位置のもと!L63,IF($A$1=8,部首の位置のもと!L72,\"\")))))))))","v":""},{"$f":"IF(IF($A$1=1,部首の位置のもと!M9,IF($A$1=2,部首の位置のもと!M18,IF(部首と位置!$A$1=3,部首の位置のもと!M27,IF($A$1=4,部首の位置のもと!M36,IF(部首と位置!$A$1=5,部首の位置のもと!M45,IF($A$1=6,部首の位置のもと!M54,IF($A$1=7,部首の位置のもと!M63,IF($A$1=8,部首の位置のもと!M72,\"\"))))))))=\"\",\"\",IF($A$1=1,部首の位置のもと!M9,IF($A$1=2,部首の位置のもと!M18,IF(部首と位置!$A$1=3,部首の位置のもと!M27,IF($A$1=4,部首の位置のもと!M36,IF(部首と位置!$A$1=5,部首の位置のもと!M45,IF($A$1=6,部首の位置のもと!M54,IF($A$1=7,部首の位置のもと!M63,IF($A$1=8,部首の位置のもと!M72,\"\")))))))))","v":""},{"$f":"IF(IF($A$1=1,部首の位置のもと!N9,IF($A$1=2,部首の位置のもと!N18,IF(部首と位置!$A$1=3,部首の位置のもと!N27,IF($A$1=4,部首の位置のもと!N36,IF(部首と位置!$A$1=5,部首の位置のもと!N45,IF($A$1=6,部首の位置のもと!N54,IF($A$1=7,部首の位置のもと!N63,IF($A$1=8,部首の位置のもと!N72,\"\"))))))))=\"\",\"\",IF($A$1=1,部首の位置のもと!N9,IF($A$1=2,部首の位置のもと!N18,IF(部首と位置!$A$1=3,部首の位置のもと!N27,IF($A$1=4,部首の位置のもと!N36,IF(部首と位置!$A$1=5,部首の位置のもと!N45,IF($A$1=6,部首の位置のもと!N54,IF($A$1=7,部首の位置のもと!N63,IF($A$1=8,部首の位置のもと!N72,\"\")))))))))","v":""}]
[null,null,null,{"$f":"IF(IF($A$1=1,部首の位置のもと!G10,IF($A$1=2,部首の位置のもと!G19,IF(部首と位置!$A$1=3,部首の位置のもと!G28,IF($A$1=4,部首の位置のもと!G37,IF(部首と位置!$A$1=5,部首の位置のもと!G46,IF($A$1=6,部首の位置のもと!G55,IF($A$1=7,部首の位置のもと!G64,IF($A$1=8,部首の位置のもと!G73,\"\"))))))))=\"\",\"\",IF($A$1=1,部首の位置のもと!G10,IF($A$1=2,部首の位置のもと!G19,IF(部首と位置!$A$1=3,部首の位置のもと!G28,IF($A$1=4,部首の位置のもと!G37,IF(部首と位置!$A$1=5,部首の位置のもと!G46,IF($A$1=6,部首の位置のもと!G55,IF($A$1=7,部首の位置のもと!G64,IF($A$1=8,部首の位置のもと!G73,\"\")))))))))","v":""},{"$f":"IF(IF($A$1=1,部首の位置のもと!H10,IF($A$1=2,部首の位置のもと!H19,IF(部首と位置!$A$1=3,部首の位置のもと!H28,IF($A$1=4,部首の位置のもと!H37,IF(部首と位置!$A$1=5,部首の位置のもと!H46,IF($A$1=6,部首の位置のもと!H55,IF($A$1=7,部首の位置のもと!H64,IF($A$1=8,部首の位置のもと!H73,\"\"))))))))=\"\",\"\",IF($A$1=1,部首の位置のもと!H10,IF($A$1=2,部首の位置のもと!H19,IF(部首と位置!$A$1=3,部首の位置のもと!H28,IF($A$1=4,部首の位置のもと!H37,IF(部首と位置!$A$1=5,部首の位置のもと!H46,IF($A$1=6,部首の位置のもと!H55,IF($A$1=7,部首の位置のもと!H64,IF($A$1=8,部首の位置のもと!H73,\"\")))))))))","v":""},{"$f":"IF(IF($A$1=1,部首の位置のもと!I10,IF($A$1=2,部首の位置のもと!I19,IF(部首と位置!$A$1=3,部首の位置のもと!I28,IF($A$1=4,部首の位置のもと!I37,IF(部首と位置!$A$1=5,部首の位置のもと!I46,IF($A$1=6,部首の位置のもと!I55,IF($A$1=7,部首の位置のもと!I64,IF($A$1=8,部首の位置のもと!I73,\"\"))))))))=\"\",\"\",IF($A$1=1,部首の位置のもと!I10,IF($A$1=2,部首の位置のもと!I19,IF(部首と位置!$A$1=3,部首の位置のもと!I28,IF($A$1=4,部首の位置のもと!I37,IF(部首と位置!$A$1=5,部首の位置のもと!I46,IF($A$1=6,部首の位置のもと!I55,IF($A$1=7,部首の位置のもと!I64,IF($A$1=8,部首の位置のもと!I73,\"\")))))))))","v":""},{"$f":"IF(IF($A$1=1,部首の位置のもと!J10,IF($A$1=2,部首の位置のもと!J19,IF(部首と位置!$A$1=3,部首の位置のもと!J28,IF($A$1=4,部首の位置のもと!J37,IF(部首と位置!$A$1=5,部首の位置のもと!J46,IF($A$1=6,部首の位置のもと!J55,IF($A$1=7,部首の位置のもと!J64,IF($A$1=8,部首の位置のもと!J73,\"\"))))))))=\"\",\"\",IF($A$1=1,部首の位置のもと!J10,IF($A$1=2,部首の位置のもと!J19,IF(部首と位置!$A$1=3,部首の位置のもと!J28,IF($A$1=4,部首の位置のもと!J37,IF(部首と位置!$A$1=5,部首の位置のもと!J46,IF($A$1=6,部首の位置のもと!J55,IF($A$1=7,部首の位置のもと!J64,IF($A$1=8,部首の位置のもと!J73,\"\")))))))))","v":""},{"$f":"IF(IF($A$1=1,部首の位置のもと!K10,IF($A$1=2,部首の位置のもと!K19,IF(部首と位置!$A$1=3,部首の位置のもと!K28,IF($A$1=4,部首の位置のもと!K37,IF(部首と位置!$A$1=5,部首の位置のもと!K46,IF($A$1=6,部首の位置のもと!K55,IF($A$1=7,部首の位置のもと!K64,IF($A$1=8,部首の位置のもと!K73,\"\"))))))))=\"\",\"\",IF($A$1=1,部首の位置のもと!K10,IF($A$1=2,部首の位置のもと!K19,IF(部首と位置!$A$1=3,部首の位置のもと!K28,IF($A$1=4,部首の位置のもと!K37,IF(部首と位置!$A$1=5,部首の位置のもと!K46,IF($A$1=6,部首の位置のもと!K55,IF($A$1=7,部首の位置のもと!K64,IF($A$1=8,部首の位置のもと!K73,\"\")))))))))","v":""},{"$f":"IF(IF($A$1=1,部首の位置のもと!L10,IF($A$1=2,部首の位置のもと!L19,IF(部首と位置!$A$1=3,部首の位置のもと!L28,IF($A$1=4,部首の位置のもと!L37,IF(部首と位置!$A$1=5,部首の位置のもと!L46,IF($A$1=6,部首の位置のもと!L55,IF($A$1=7,部首の位置のもと!L64,IF($A$1=8,部首の位置のもと!L73,\"\"))))))))=\"\",\"\",IF($A$1=1,部首の位置のもと!L10,IF($A$1=2,部首の位置のもと!L19,IF(部首と位置!$A$1=3,部首の位置のもと!L28,IF($A$1=4,部首の位置のもと!L37,IF(部首と位置!$A$1=5,部首の位置のもと!L46,IF($A$1=6,部首の位置のもと!L55,IF($A$1=7,部首の位置のもと!L64,IF($A$1=8,部首の位置のもと!L73,\"\")))))))))","v":""},{"$f":"IF(IF($A$1=1,部首の位置のもと!M10,IF($A$1=2,部首の位置のもと!M19,IF(部首と位置!$A$1=3,部首の位置のもと!M28,IF($A$1=4,部首の位置のもと!M37,IF(部首と位置!$A$1=5,部首の位置のもと!M46,IF($A$1=6,部首の位置のもと!M55,IF($A$1=7,部首の位置のもと!M64,IF($A$1=8,部首の位置のもと!M73,\"\"))))))))=\"\",\"\",IF($A$1=1,部首の位置のもと!M10,IF($A$1=2,部首の位置のもと!M19,IF(部首と位置!$A$1=3,部首の位置のもと!M28,IF($A$1=4,部首の位置のもと!M37,IF(部首と位置!$A$1=5,部首の位置のもと!M46,IF($A$1=6,部首の位置のもと!M55,IF($A$1=7,部首の位置のもと!M64,IF($A$1=8,部首の位置のもと!M73,\"\")))))))))","v":""},{"$f":"IF(IF($A$1=1,部首の位置のもと!N10,IF($A$1=2,部首の位置のもと!N19,IF(部首と位置!$A$1=3,部首の位置のもと!N28,IF($A$1=4,部首の位置のもと!N37,IF(部首と位置!$A$1=5,部首の位置のもと!N46,IF($A$1=6,部首の位置のもと!N55,IF($A$1=7,部首の位置のもと!N64,IF($A$1=8,部首の位置のもと!N73,\"\"))))))))=\"\",\"\",IF($A$1=1,部首の位置のもと!N10,IF($A$1=2,部首の位置のもと!N19,IF(部首と位置!$A$1=3,部首の位置のもと!N28,IF($A$1=4,部首の位置のもと!N37,IF(部首と位置!$A$1=5,部首の位置のもと!N46,IF($A$1=6,部首の位置のもと!N55,IF($A$1=7,部首の位置のもと!N64,IF($A$1=8,部首の位置のもと!N73,\"\")))))))))","v":""}]
[null,null,null,{"$f":"IF(IF($A$1=1,部首の位置のもと!G11,IF($A$1=2,部首の位置のもと!G20,IF(部首と位置!$A$1=3,部首の位置のもと!G29,IF($A$1=4,部首の位置のもと!G38,IF(部首と位置!$A$1=5,部首の位置のもと!G47,IF($A$1=6,部首の位置のもと!G56,IF($A$1=7,部首の位置のもと!G65,IF($A$1=8,部首の位置のもと!G74,\"\"))))))))=\"\",\"\",IF($A$1=1,部首の位置のもと!G11,IF($A$1=2,部首の位置のもと!G20,IF(部首と位置!$A$1=3,部首の位置のもと!G29,IF($A$1=4,部首の位置のもと!G38,IF(部首と位置!$A$1=5,部首の位置のもと!G47,IF($A$1=6,部首の位置のもと!G56,IF($A$1=7,部首の位置のもと!G65,IF($A$1=8,部首の位置のもと!G74,\"\")))))))))","v":""},{"$f":"IF(IF($A$1=1,部首の位置のもと!H11,IF($A$1=2,部首の位置のもと!H20,IF(部首と位置!$A$1=3,部首の位置のもと!H29,IF($A$1=4,部首の位置のもと!H38,IF(部首と位置!$A$1=5,部首の位置のもと!H47,IF($A$1=6,部首の位置のもと!H56,IF($A$1=7,部首の位置のもと!H65,IF($A$1=8,部首の位置のもと!H74,\"\"))))))))=\"\",\"\",IF($A$1=1,部首の位置のもと!H11,IF($A$1=2,部首の位置のもと!H20,IF(部首と位置!$A$1=3,部首の位置のもと!H29,IF($A$1=4,部首の位置のもと!H38,IF(部首と位置!$A$1=5,部首の位置のもと!H47,IF($A$1=6,部首の位置のもと!H56,IF($A$1=7,部首の位置のもと!H65,IF($A$1=8,部首の位置のもと!H74,\"\")))))))))","v":""},{"$f":"IF(IF($A$1=1,部首の位置のもと!I11,IF($A$1=2,部首の位置のもと!I20,IF(部首と位置!$A$1=3,部首の位置のもと!I29,IF($A$1=4,部首の位置のもと!I38,IF(部首と位置!$A$1=5,部首の位置のもと!I47,IF($A$1=6,部首の位置のもと!I56,IF($A$1=7,部首の位置のもと!I65,IF($A$1=8,部首の位置のもと!I74,\"\"))))))))=\"\",\"\",IF($A$1=1,部首の位置のもと!I11,IF($A$1=2,部首の位置のもと!I20,IF(部首と位置!$A$1=3,部首の位置のもと!I29,IF($A$1=4,部首の位置のもと!I38,IF(部首と位置!$A$1=5,部首の位置のもと!I47,IF($A$1=6,部首の位置のもと!I56,IF($A$1=7,部首の位置のもと!I65,IF($A$1=8,部首の位置のもと!I74,\"\")))))))))","v":""},{"$f":"IF(IF($A$1=1,部首の位置のもと!J11,IF($A$1=2,部首の位置のもと!J20,IF(部首と位置!$A$1=3,部首の位置のもと!J29,IF($A$1=4,部首の位置のもと!J38,IF(部首と位置!$A$1=5,部首の位置のもと!J47,IF($A$1=6,部首の位置のもと!J56,IF($A$1=7,部首の位置のもと!J65,IF($A$1=8,部首の位置のもと!J74,\"\"))))))))=\"\",\"\",IF($A$1=1,部首の位置のもと!J11,IF($A$1=2,部首の位置のもと!J20,IF(部首と位置!$A$1=3,部首の位置のもと!J29,IF($A$1=4,部首の位置のもと!J38,IF(部首と位置!$A$1=5,部首の位置のもと!J47,IF($A$1=6,部首の位置のもと!J56,IF($A$1=7,部首の位置のもと!J65,IF($A$1=8,部首の位置のもと!J74,\"\")))))))))","v":""},{"$f":"IF(IF($A$1=1,部首の位置のもと!K11,IF($A$1=2,部首の位置のもと!K20,IF(部首と位置!$A$1=3,部首の位置のもと!K29,IF($A$1=4,部首の位置のもと!K38,IF(部首と位置!$A$1=5,部首の位置のもと!K47,IF($A$1=6,部首の位置のもと!K56,IF($A$1=7,部首の位置のもと!K65,IF($A$1=8,部首の位置のもと!K74,\"\"))))))))=\"\",\"\",IF($A$1=1,部首の位置のもと!K11,IF($A$1=2,部首の位置のもと!K20,IF(部首と位置!$A$1=3,部首の位置のもと!K29,IF($A$1=4,部首の位置のもと!K38,IF(部首と位置!$A$1=5,部首の位置のもと!K47,IF($A$1=6,部首の位置のもと!K56,IF($A$1=7,部首の位置のもと!K65,IF($A$1=8,部首の位置のもと!K74,\"\")))))))))","v":""},{"$f":"IF(IF($A$1=1,部首の位置のもと!L11,IF($A$1=2,部首の位置のもと!L20,IF(部首と位置!$A$1=3,部首の位置のもと!L29,IF($A$1=4,部首の位置のもと!L38,IF(部首と位置!$A$1=5,部首の位置のもと!L47,IF($A$1=6,部首の位置のもと!L56,IF($A$1=7,部首の位置のもと!L65,IF($A$1=8,部首の位置のもと!L74,\"\"))))))))=\"\",\"\",IF($A$1=1,部首の位置のもと!L11,IF($A$1=2,部首の位置のもと!L20,IF(部首と位置!$A$1=3,部首の位置のもと!L29,IF($A$1=4,部首の位置のもと!L38,IF(部首と位置!$A$1=5,部首の位置のもと!L47,IF($A$1=6,部首の位置のもと!L56,IF($A$1=7,部首の位置のもと!L65,IF($A$1=8,部首の位置のもと!L74,\"\")))))))))","v":""},{"$f":"IF(IF($A$1=1,部首の位置のもと!M11,IF($A$1=2,部首の位置のもと!M20,IF(部首と位置!$A$1=3,部首の位置のもと!M29,IF($A$1=4,部首の位置のもと!M38,IF(部首と位置!$A$1=5,部首の位置のもと!M47,IF($A$1=6,部首の位置のもと!M56,IF($A$1=7,部首の位置のもと!M65,IF($A$1=8,部首の位置のもと!M74,\"\"))))))))=\"\",\"\",IF($A$1=1,部首の位置のもと!M11,IF($A$1=2,部首の位置のもと!M20,IF(部首と位置!$A$1=3,部首の位置のもと!M29,IF($A$1=4,部首の位置のもと!M38,IF(部首と位置!$A$1=5,部首の位置のもと!M47,IF($A$1=6,部首の位置のもと!M56,IF($A$1=7,部首の位置のもと!M65,IF($A$1=8,部首の位置のもと!M74,\"\")))))))))","v":""},{"$f":"IF(IF($A$1=1,部首の位置のもと!N11,IF($A$1=2,部首の位置のもと!N20,IF(部首と位置!$A$1=3,部首の位置のもと!N29,IF($A$1=4,部首の位置のもと!N38,IF(部首と位置!$A$1=5,部首の位置のもと!N47,IF($A$1=6,部首の位置のもと!N56,IF($A$1=7,部首の位置のもと!N65,IF($A$1=8,部首の位置のもと!N74,\"\"))))))))=\"\",\"\",IF($A$1=1,部首の位置のもと!N11,IF($A$1=2,部首の位置のもと!N20,IF(部首と位置!$A$1=3,部首の位置のもと!N29,IF($A$1=4,部首の位置のもと!N38,IF(部首と位置!$A$1=5,部首の位置のもと!N47,IF($A$1=6,部首の位置のもと!N56,IF($A$1=7,部首の位置のもと!N65,IF($A$1=8,部首の位置のもと!N74,\"\")))))))))","v":""}]

{"sheet":"部首名わかるかな","index":1,"n_rows":27,"n_cols":4,"rows_kept":27,"cut":false,"hidden":false,"merged":[[26,3,32,10],[1,3,25,10]]}
[1]
[{"$f":"VLOOKUP($A$1,部首名一覧!$C$3:$K$415,6)","v":"あお"},null,null,{"$f":"IF($A$2=\"首一覧\",VLOOKUP($A$1,部首名一覧!$C$3:$K$415,5)&\"行の部首\",VLOOKUP($A$1,部首名一覧!$C$3:$K$415,5))","v":"青"}]
[]
[]
[]
[]
[]
[]
[]
[]
[]
[]
[]
[]
[]
[]
[]
[]
[]
[]
[]
[]
[]
[]
[]
[]
[null,null,null,{"$f":"IF($A$2=\"首一覧\",\"\",A2)","v":"あお"}]

{"sheet":"部首名一覧","index":2,"n_rows":415,"n_cols":11,"rows_kept":415,"cut":false,"hidden":false,"merged":[]}
[]
[null,null,null,null,null,null,1]
[null,null,1,"青 - あお",{"$f":"LEN(D3)","v":6},null,{"$f":"LEFT($D3,G$2)","v":"青"},{"$f":"IFERROR(RIGHT($D3,(E3-4)),\"\")","v":"あお"},null,null,"青 - あお"]
[null,null,2,"赤 - あか",{"$f":"LEN(D4)","v":6},null,{"$f":"LEFT($D4,G$2)","v":"赤"},{"$f":"IFERROR(RIGHT($D4,(E4-4)),\"\")","v":"あか"},null,null,"赤 - あか"]
[null,null,3,"欠 - あくび",7,"a","欠","あくび",null,null,"欠 - あくび"]
[null,null,4,"麻 - あさ",6,null,"麻","あさ",null,null,"麻 - あさ"]
[null,null,5,"麻 - あさかんむり",10,"a","麻","あさかんむり",null,null,"麻 - あさかんむり"]
[null,null,6,"足 - あし",6,"a","足","あし",null,null,"足 - あし"]
[null,null,7,"𧾷 - あしへん",9,"a","𧾷"," あしへん",null,null,"𧾷 - あしへん"]
[null,null,8,"穴 - あな",6,null,"穴","あな",null,null,"穴 - あな"]
[null,null,9,"穴 - あなかんむり",10,"a","穴","あなかんむり",null,null,"穴 - あなかんむり"]
[null,null,10,"甘 - あまい",7,null,"甘","あまい",null,null,"甘 - あまい"]
[null,null,11,"罒 - あみがしら",9,null,"罒","あみがしら",null,null,"罒 - あみがしら"]
[null,null,12,"罒 - あみめ",7,null,"罒","あみめ",null,null,"罒 - あみめ"]
[null,null,13,"雨 - あめ",6,null,"雨","あめ",null,null,"雨 - あめ"]
[null,null,14,"雨 - あめかんむり",10,"a","雨","あめかんむり",null,null,"雨 - あめかんむり"]
[null,null,15,"非 - あらず",7,null,"非","あらず",null,null,"非 - あらず"]
[null,null,16,"石 - いし",6,null,"石","いし",null,null,"石 - いし"]
[null,null,17,"石 - いしへん",8,"a","石","いしへん",null,null,"石 - いしへん"]
[null,null,18,"至 - いたる",7,null,"至","いたる",null,null,"至 - いたる"]
[null,null,19,"至 - いたるへん",9,null,"至","いたるへん",null,null,"至 - いたるへん"]
[null,null,20,"一 - いち",6,null,"一","いち",null,null,"一 - いち"]
[null,null,21,"干 - いちじゅう",9,null,"干","いちじゅう",null,null,"干 - いちじゅう"]
[null,null,22,"歹 - いちたへん",9,null,"歹","いちたへん",null,null,"歹 - いちたへん"]
[null,null,23,"糸 - いと",6,null,"糸","いと",null,null,"糸 - いと"]
[null,null,24,"幺 - いとがしら",9,null,"幺","いとがしら",null,null,"幺 - いとがしら"]
[null,null,25,"糸 - いとへん",8,"a","糸","いとへん",null,null,"糸 - いとへん"]
[null,null,26,"犬 - いぬ",6,null,"犬","いぬ",null,null,"犬 - いぬ"]
[null,null,27,"豕 - いのこ",7,null,"豕","いのこ",null,null,"豕 - いのこ"]
[null,null,28,"彑 - いのこがしら",10,null,"彑","いのこがしら",null,null,"彑 - いのこがしら"]
[null,null,29,"入 - いりがしら",9,null,"入","いりがしら",null,null,"入 - いりがしら"]
[null,null,30,"入 - いりやね",8,null,"入","いりやね",null,null,"入 - いりやね"]
[null,null,31,"入 - いる",6,null,"入","いる",null,null,"入 - いる"]
[null,null,32,"色 - いろ",6,null,"色","いろ",null,null,"色 - いろ"]
[null,null,33,"曰 - いわく",7,null,"曰","いわく",null,null,"曰 - いわく"]
[null,null,34,"廴 - いんにょう",9,null,"廴","いんにょう",null,null,"廴 - いんにょう"]
[null,null,35,"魚 - うお",6,null,"魚","うお",null,null,"魚 - うお"]
[null,null,36,"魚 - うおへん",8,"a","魚","うおへん",null,null,"魚 - うおへん"]
[null,null,37,"宀 - うかんむり",9,"a","宀","うかんむり",null,null,"宀 - うかんむり"]
[null,null,38,"凵 - うけばこ",8,"a","凵","うけばこ",null,null,"凵 - うけばこ"]
[null,null,39,"牛 - うし",6,null,"牛","うし",null,null,"牛 - うし"]
[null,null,40,"氏 - うじ",6,null,"氏","うじ",null,null,"氏 - うじ"]
[null,null,41,"牛 - うしへん",8,null,"牛","うしへん",null,null,"牛 - うしへん"]
[null,null,42,"臼 - うす",6,null,"臼","うす",null,null,"臼 - うす"]
[null,null,43,"馬 - うま",6,null,"馬","うま",null,null,"馬 - うま"]
[null,null,44,"馬 - うまへん",8,"a","馬","うまへん",null,null,"馬 - うまへん"]
[null,null,45,"生 - うまれる",8,null,"生","うまれる",null,null,"生 - うまれる"]
[null,null,46,"卜 - うらない",8,null,"卜","うらない",null,null,"卜 - うらない"]
[null,null,47,"瓜 - うり",6,null,"瓜","うり",null,null,"瓜 - うり"]
[null,null,48,"工 - え",5,null,"工","え",null,null,"工 - え"]
[null,null,49,"支 - えだにょう",9,null,"支","えだにょう",null,null,"支 - えだにょう"]
[null,null,50,"廴 - えんにょう",9,"a","廴","えんにょう",null,null,"廴 - えんにょう"]
[null,null,51,"耂 - おいがしら",9,null,"耂","おいがしら",null,null,"耂 - おいがしら"]
[null,null,52,"耂 - おいかんむり",10,null,"耂","おいかんむり",null,null,"耂 - おいかんむり"]
[null,null,53,"尢 - おう（尢）",9,null,"尢","おう（尢）",null,null,"尢 - おう（尢）"]
[null,null,54,"王 - おう（王）",9,null,"王","おう（王）",null,null,"王 - おう（王）"]
[null,null,55,"王 - おうへん",8,"a","王","おうへん",null,null,"王 - おうへん"]
[null,null,56,"襾 - おおいかんむり（襾）",14,null,"襾","おおいかんむり（襾）",null,null,"襾 - おおいかんむり（襾）"]
[null,null,57,"覀 - おおいかんむり（覀）",14,null,"覀","おおいかんむり（覀）",null,null,"覀 - おおいかんむり（覀）"]
[null,null,58,"頁 - おおがい",8,"a","頁","おおがい",null,null,"頁 - おおがい"]
[null,null,59,"阝 - おおざと",8,"a","阝","おおざと",null,null,"阝 - おおざと"]
[null,null,60,"阜 - おか",6,null,"阜","おか",null,null,"阜 - おか"]
[null,null,61,"乙 - おつ",6,null,"乙","おつ",null,null,"乙 - おつ"]
[null,null,62,"乚 - おつにょう",9,null,"乚","おつにょう",null,null,"乚 - おつにょう"]
[null,null,63,"音 - おと",6,null,"音","おと",null,null,"音 - おと"]
[null,null,64,"音 - おとへん",8,null,"音","おとへん",null,null,"音 - おとへん"]
[null,null,65,"鬼 - おに",6,null,"鬼","おに",null,null,"鬼 - おに"]
[null,null,66,"斤 - おの",{"$f":"LEN(D68)","v":6},null,{"$f":"LEFT($D68,G$2)","v":"斤"},{"$f":"IFERROR(RIGHT($D68,(E68-4)),\"\")","v":"おの"},null,null,"斤 - おの"]
[null,null,67,"斤 - おのづくり",9,null,"斤","おのづくり",null,null,"斤 - おのづくり"]
[null,null,68,"己 - おのれ",7,null,"己","おのれ",null,null,"己 - おのれ"]
[null,null,69,"女 - おんな",7,null,"女","おんな",null,null,"女 - おんな"]
[null,null,70,"女 - おんなへん",9,"a","女","おんなへん",null,null,"女 - おんなへん"]
[null,null,71,"か行の部首一覧",7,null,"か","首一覧",null,null,"か行の部首一覧"]
[null,null,72,"香 - か",5,null,"香","か",null,null,"香 - か"]
[null,null,73,"貝 - かい",6,null,"貝","かい",null,null,"貝 - かい"]
[null,null,74,"香 - かおり",7,null,"香","かおり",null,null,"香 - かおり"]
[null,null,75,"角 - かく",6,null,"角","かく",null,null,"角 - かく"]
[null,null,76,"貝 - かいへん",8,null,"貝","かいへん",null,null,"貝 - かいへん"]
[null,null,77,"黽 - かえる",7,"a","黽","かえる",null,null,"黽 - かえる"]
[null,null,78,"匸 - かくしがまえ",10,null,"匸","かくしがまえ",null,null,"匸 - かくしがまえ"]
[null,null,79,"革 - かくのかわ",9,null,"革","かくのかわ",null,null,"革 - かくのかわ"]
[null,null,80,"欠 - かける",7,null,"欠","かける",null,null,"欠 - かける"]
[null,null,81,"風 - かぜ",6,null,"風","かぜ",null,null,"風 - かぜ"]
[null,null,82,"几 - かぜがまえ",9,null,"几","かぜがまえ",null,null,"几 - かぜがまえ"]
[null,null,83,"几 - かぜかんむり",10,null,"几","かぜかんむり",null,null,"几 - かぜかんむり"]
[null,null,84,"片 - かた",6,null,"片","かた",null,null,"片 - かた"]
[null,null,85,"刀 - かたな",7,null,"刀","かたな",null,null,"刀 - かたな"]
[null,null,86,"方 - かたへん（方）",11,null,"方","かたへん（方）",null,null,"方 - かたへん（方）"]
[null,null,87,"片 - かたへん（片）",11,null,"片","かたへん（片）",null,null,"片 - かたへん（片）"]
[null,null,88,"歹 - がつへん",8,"a","歹","がつへん",null,null,"歹 - がつへん"]
[null,null,89,"門 - かどがまえ",9,null,"門","かどがまえ",null,null,"門 - かどがまえ"]
[null,null,90,"鬲 - かなえ（鬲）",10,null,"鬲","かなえ（鬲）",null,null,"鬲 - かなえ（鬲）"]
[null,null,91,"鼎 - かなえ（鼎）",10,null,"鼎","かなえ（鼎）",null,null,"鼎 - かなえ（鼎）"]
[null,null,92,"金 - かね",6,null,"金","かね",null,null,"金 - かね"]
[null,null,93,"釒 - かねへん",8,null,"釒","かねへん",null,null,"釒 - かねへん"]
[null,null,94,"尸 - かばね",7,"a","尸","かばね",null,null,"尸 - かばね"]
[null,null,95,"歹 - かばねへん",9,null,"歹","かばねへん",null,null,"歹 - かばねへん"]
[null,null,96,"髟 - かみがしら",9,null,"髟","かみがしら",null,null,"髟 - かみがしら"]
[null,null,97,"亀 - かめ（亀）",9,null,"亀","かめ（亀）",null,null,"亀 - かめ（亀）"]
[null,null,98,"龜 - かめ（龜）",9,null,"龜","かめ（龜）",null,null,"龜 - かめ（龜）"]
[null,null,99,"辛 - からい",7,null,"辛","からい",null,null,"辛 - からい"]
[null,null,100,"川 - かわ（川）",9,null,"川","かわ（川）",null,null,"川 - かわ（川）"]
[null,null,101,"巛 - かわ（巛）",9,null,"巛","かわ（巛）",null,null,"巛 - かわ（巛）"]
[null,null,102,"革 - かわへん",8,null,"革","かわへん",null,null,"革 - かわへん"]
[null,null,103,"瓦 - かわら",7,"a","瓦","かわら",null,null,"瓦 - かわら"]
[null,null,104,"干 - かん（干）",9,null,"干","かん（干）",null,null,"干 - かん（干）"]
[null,null,105,"甘 - かん（甘）",9,null,"甘","かん（甘）",null,null,"甘 - かん（甘）"]
[null,null,106,"厂 - がんだれ",8,null,"厂","がんだれ",null,null,"厂 - がんだれ"]
[null,null,107,"凵 - かんにょう",9,"a","凵","かんにょう",null,null,"凵 - かんにょう"]
[null,null,108,"木 - き",5,null,"木","き",null,null,"木 - き"]
[null,null,109,"黄 - き",5,null,"黄","き",null,null,"黄 - き"]
[null,null,110,"气 - きがまえ",8,null,"气","きがまえ",null,null,"气 - きがまえ"]
[null,null,111,"几 - きにょう（几）",11,null,"几","きにょう（几）",null,null,"几 - きにょう（几）"]
[null,null,112,"鬼 - きにょう（鬼）",11,null,"鬼","きにょう（鬼）",null,null,"鬼 - きにょう（鬼）"]
[null,null,113,"牙 - きば",6,"a","牙","きば",null,null,"牙 - きば"]
[null,null,114,"黍 - きび",6,null,"黍","きび",null,null,"黍 - きび"]
[null,null,115,"木 - きへん",7,null,"木","きへん",null,null,"木 - きへん"]
[null,null,116,"廾 - きょう",7,"a","廾","きょう",null,null,"廾 - きょう"]
[null,null,117,"行 - ぎょう",7,null,"行","ぎょう",null,null,"行 - ぎょう"]
[null,null,118,"行 - ぎょうがまえ",10,null,"行","ぎょうがまえ",null,null,"行 - ぎょうがまえ"]
[null,null,119,"彳 - ぎょうにんべん",11,"a","彳","ぎょうにんべん",null,null,"彳 - ぎょうにんべん"]
[null,null,120,"斤 - きん",6,"a","斤","きん",null,null,"斤 - きん"]
[null,null,121,"巾 - きんべん",8,null,"巾","きんべん",null,null,"巾 - きんべん"]
[null,null,122,"禸 - ぐうのあし",9,null,"禸","ぐうのあし",null,null,"禸 - ぐうのあし"]
[null,null,123,"艸 - くさ",6,null,"艸","くさ",null,null,"艸 - くさ"]
[null,null,124,"艹 - くさかんむり",10,null,"艹","くさかんむり",null,null,"艹 - くさかんむり"]
[null,null,125,"屮 - くさのめ",8,"a","屮","くさのめ",null,null,"屮 - くさのめ"]
[null,null,126,"口 - くち",6,null,"口","くち",null,null,"口 - くち"]
[null,null,127,"口 - くちへん",8,null,"口","くちへん",null,null,"口 - くちへん"]
[null,null,128,"囗 - くにがまえ",9,"a","囗","くにがまえ",null,null,"囗 - くにがまえ"]
[null,null,129,"首 - くび",6,"a","首","くび",null,null,"首 - くび"]
[null,null,130,"比 - くらべる",{"$f":"LEN(D132)","v":8},null,{"$f":"LEFT($D132,G$2)","v":"比"},{"$f":"IFERROR(RIGHT($D132,(E132-4)),\"\")","v":"くらべる"},null,null,"比 - くらべる"]
[null,null,131,"車 - くるま",7,null,"車","くるま",null,null,"車 - くるま"]
[null,null,132,"車 - くるまへん",9,null,"車","くるまへん",null,null,"車 - くるまへん"]
[null,null,133,"黒 - くろ",6,"a","黒","くろ",null,null,"黒 - くろ"]
[null,null,134,"毛 - け",5,null,"毛","け",null,null,"毛 - け"]
[null,null,135,"彑 - けいがしら",9,null,"彑","けいがしら",null,null,"彑 - けいがしら"]
[null,null,136,"冂 - けいがまえ",9,null,"冂","けいがまえ",null,null,"冂 - けいがまえ"]
[null,null,137,"亠 - けいさんかんむり",12,null,"亠","けいさんかんむり",null,null,"亠 - けいさんかんむり"]
[null,null,138,"彡 - けかざり",8,"a","彡","けかざり",null,null,"彡 - けかざり"]
[null,null,139,"皮 - けがわ",7,null,"皮","けがわ",null,null,"皮 - けがわ"]
[null,null,140,"犭 - けものへん",9,null,"犭","けものへん",null,null,"犭 - けものへん"]
[null,null,141,"玄 - げん（玄）",9,null,"玄","げん（玄）",null,null,"玄 - げん（玄）"]
[null,null,142,"言 - げん（言）",9,null,"言","げん（言）",null,null,"言 - げん（言）"]
[null,null,143,"子 - こ",5,null,"子","こ",null,null,"子 - こ"]
[null,null,144,"爻 - こう",6,null,"爻","こう",null,null,"爻 - こう"]
[null,null,145,"貝 - こがい",7,null,"貝","こがい",null,null,"貝 - こがい"]
[null,null,146,"心 - こころ",7,null,"心","こころ",null,null,"心 - こころ"]
[null,null,147,"子 - こへん",7,null,"子","こへん",null,null,"子 - こへん"]
[null,null,148,"阝 - こざとへん",9,null,"阝","こざとへん",null,null,"阝 - こざとへん"]
[null,null,149,"廾 - こまぬき",8,null,"廾","こまぬき",null,null,"廾 - こまぬき"]
[null,null,150,"米 - こめ",6,null,"米","こめ",null,null,"米 - こめ"]
[null,null,151,"米 - こめへん",8,null,"米","こめへん",null,null,"米 - こめへん"]
[null,null,152,"衣 - ころも",7,null,"衣","ころも",null,null,"衣 - ころも"]
[null,null,153,"衤 - ころもへん",9,null,"衤","ころもへん",null,null,"衤 - ころもへん"]
[null,null,154,"艮 - こんづくり",9,"a","艮","こんづくり",null,null,"艮 - こんづくり"]
[null,null,155,"訁 - ごんべん",8,null,"訁","ごんべん",null,null,"訁 - ごんべん"]
[null,null,156,"さ行の部首一覧",7,"a","さ","首一覧",null,null,"さ行の部首一覧"]
[null,null,157,"里 - さと",6,null,"里","さと",null,null,"里 - さと"]
[null,null,158,"里 - さとへん",8,null,"里","さとへん",null,null,"里 - さとへん"]
[null,null,159,"士 - さむらい",8,null,"士","さむらい",null,null,"士 - さむらい"]
[null,null,160,"皿 - さら ",7,"a","皿","さら ",null,null,"皿 - さら "]
[null,null,161,"氵 - さんずい",8,null,"氵","さんずい",null,null,"氵 - さんずい"]
[null,null,162,"彡 - さんづくり",9,null,"彡","さんづくり",null,null,"彡 - さんづくり"]
[null,null,163,"支 - し",5,null,"支","し",null,null,"支 - し"]
[null,null,164,"鹵 - しお",6,"a","鹵","しお",null,null,"鹵 - しお"]
[null,null,165,"鹿 - しか",6,null,"鹿","しか",null,null,"鹿 - しか"]
[null,null,166,"而 - しかして",8,null,"而","しかして",null,null,"而 - しかして"]
[null,null,167,"尸 - しかばね",8,null,"尸","しかばね",null,null,"尸 - しかばね"]
[null,null,168,"尸 - しかばねかんむり",12,null,"尸","しかばねかんむり",null,null,"尸 - しかばねかんむり"]
[null,null,169,"弋 - しきがまえ",9,"a","弋","しきがまえ",null,null,"弋 - しきがまえ"]
[null,null,170,"而 - しこうして",9,null,"而","しこうして",null,null,"而 - しこうして"]
[null,null,171,"舌 - した",6,null,"舌","した",null,null,"舌 - した"]
[null,null,172,"⺗ - したごころ",9,null,"⺗","したごころ",null,null,"⺗ - したごころ"]
[null,null,173,"氺 - したみず",8,null,"氺","したみず",null,null,"氺 - したみず"]
[null,null,174,"支 - しにょう",8,"a","支","しにょう",null,null,"支 - しにょう"]
[null,null,175,"示 - しめす ",8,null,"示","しめす ",null,null,"示 - しめす "]
[null,null,176,"礻 - しめすへん",9,null,"礻","しめすへん",null,null,"礻 - しめすへん"]
[null,null,177,"十 - じゅう",7,"a","十","じゅう",null,null,"十 - じゅう"]
[null,null,178,"小 - しょう（小）",10,"a","小","しょう（小）",null,null,"小 - しょう（小）"]
[null,null,179,"⺌ - しょう（⺌）",10,null,"⺌","しょう（⺌）",null,null,"⺌ - しょう（⺌）"]
[null,null,180,"⺌ - しょうがしら",10,null,"⺌","しょうがしら",null,null,"⺌ - しょうがしら"]
[null,null,181,"爿 - しょうへん",9,null,"爿","しょうへん",null,null,"爿 - しょうへん"]
[null,null,182,"食 - しょく ",8,null,"食","しょく ",null,null,"食 - しょく "]
[null,null,183,"飠 - しょくへん",9,null,"飠","しょくへん",null,null,"飠 - しょくへん"]
[null,null,184,"白 - しろ",6,"a","白","しろ",null,null,"白 - しろ"]
[null,null,185,"臣 - しん ",7,null,"臣","しん ",null,null,"臣 - しん "]
[null,null,186,"辶 - しんにゅう",9,null,"辶","しんにゅう",null,null,"辶 - しんにゅう"]
[null,null,187,"辶 - しんにょう",9,null,"辶","しんにょう",null,null,"辶 - しんにょう"]
[null,null,188,"辰 - しんのたつ",9,null,"辰","しんのたつ",null,null,"辰 - しんのたつ"]
[null,null,189,"夊 - すいにょう",9,"a","夊","すいにょう",null,null,"夊 - すいにょう"]
[null,null,190,"耒 - すきへん",8,null,"耒","すきへん",null,null,"耒 - すきへん"]
[null,null,191,"旡 - すでのつくり",10,null,"旡","すでのつくり",null,null,"旡 - すでのつくり"]
[null,null,192,"寸 - すん",6,"a","寸","すん",null,null,"寸 - すん"]
[null,null,193,"斉 - せい（斉）",9,null,"斉","せい（斉）",null,null,"斉 - せい（斉）"]
[null,null,194,"齊 - せい（齊）",{"$f":"LEN(D196)","v":9},null,{"$f":"LEFT($D196,G$2)","v":"齊"},{"$f":"IFERROR(RIGHT($D196,(E196-4)),\"\")","v":"せい（齊）"},null,null,"齊 - せい（齊）"]
[null,null,195,"走 - そうにょう",9,null,"走","そうにょう",null,null,"走 - そうにょう"]
[null,null,196,"た行の部首一覧",7,null,"た","首一覧",null,null,"た行の部首一覧"]
[null,null,197,"夕 - た（夕）",8,"a","夕","た（夕）",null,null,"夕 - た（夕）"]
[null,null,198,"田 - た（田）",8,null,"田","た（田）",null,null,"田 - た（田）"]
[null,null,199,"大 - だい",6,null,"大","だい",null,null,"大 - だい"]
[null,null,200,"大 - だいがしら",9,null,"大","だいがしら",null,null,"大 - だいがしら"]
[null,null,201,"大 - だいかんむり",10,null,"大","だいかんむり",null,null,"大 - だいかんむり"]
[null,null,202,"尢 - だいのまげあし",11,null,"尢","だいのまげあし",null,null,"尢 - だいのまげあし"]
[null,null,203,"高 - たかい",7,null,"高","たかい",null,null,"高 - たかい"]
[null,null,204,"工 - たくみ",7,null,"工","たくみ",null,null,"工 - たくみ"]
[null,null,205,"工 - たくみへん",9,null,"工","たくみへん",null,null,"工 - たくみへん"]
[null,null,206,"竹 - たけ",6,null,"竹","たけ",null,null,"竹 - たけ"]
[null,null,207,"竹 - たけかんむり",10,null,"竹","たけかんむり",null,null,"竹 - たけかんむり"]
[null,null,208,"鬥 - たたかいがまえ",11,null,"鬥","たたかいがまえ",null,null,"鬥 - たたかいがまえ"]
[null,null,209,"丨 - たてぼう",8,null,"丨","たてぼう",null,null,"丨 - たてぼう"]
[null,null,210,"立 - たつ",6,"a","立","たつ",null,null,"立 - たつ"]
[null,null,211,"立 - たつへん",8,null,"立","たつへん",null,null,"立 - たつへん"]
[null,null,212,"谷 - たに",6,null,"谷","たに",null,null,"谷 - たに"]
[null,null,213,"田 - たへん",7,null,"田","たへん",null,null,"田 - たへん"]
[null,null,214,"玉 - たま",6,"a","玉","たま",null,null,"玉 - たま"]
[null,null,215,"王 - たまへん",8,null,"王","たまへん",null,null,"王 - たまへん"]
[null,null,216,"血 - ち（血）",8,"a","血","ち（血）",null,null,"血 - ち（血）"]
[null,null,217,"黹 - ち（黹）",8,null,"黹","ち（黹）",null,null,"黹 - ち（黹）"]
[null,null,218,"力 - ちから",7,null,"力","ちから",null,null,"力 - ちから"]
[null,null,219,"父 - ちち",6,null,"父","ちち",null,null,"父 - ちち"]
[null,null,220,"鬯 - ちょう",7,null,"鬯","ちょう",null,null,"鬯 - ちょう"]
[null,null,221,"ツ - つ",5,null,"ツ","つ",null,null,"ツ - つ"]
[null,null,222,"ツ - つ",5,null,"ツ","つ",null,null,"ツ - つ"]
[null,null,223,"月 - つき",6,null,"月","つき",null,null,"月 - つき"]
[null,null,224,"月 - つきへん",8,null,"月","つきへん",null,null,"月 - つきへん"]
[null,null,225,"几 - つくえ",7,null,"几","つくえ",null,null,"几 - つくえ"]
[null,null,226,"革 - つくりがわ",9,null,"革","つくりがわ",null,null,"革 - つくりがわ"]
[null,null,227,"土 - つち",6,"a","土","つち",null,null,"土 - つち"]
[null,null,228,"土 - つちへん",8,null,"土","つちへん",null,null,"土 - つちへん"]
[null,null,229,"鼓 - つづみ",7,null,"鼓","つづみ",null,null,"鼓 - つづみ"]
[null,null,230,"勹 - つつみがまえ",10,null,"勹","つつみがまえ",null,null,"勹 - つつみがまえ"]
[null,null,231,"角 - つの",6,"a","角","つの",null,null,"角 - つの"]
[null,null,232,"角 - つのへん",8,null,"角","つのへん",null,null,"角 - つのへん"]
[null,null,233,"爪 - つめ",6,null,"爪","つめ",null,null,"爪 - つめ"]
[null,null,234,"爫 - つめがしら",9,null,"爫","つめがしら",null,null,"爫 - つめがしら"]
[null,null,235,"爫 - つめかんむり",10,"a","爫","つめかんむり",null,null,"爫 - つめかんむり"]
[null,null,236,"乚 - つりばり",8,null,"乚","つりばり",null,null,"乚 - つりばり"]
[null,null,237,"手 - て",5,null,"手","て",null,null,"手 - て"]
[null,null,238,"屮 - てつ",6,null,"屮","てつ",null,null,"屮 - てつ"]
[null,null,239,"扌 - てへん",7,null,"扌","てへん",null,null,"扌 - てへん"]
[null,null,240,"丶 - てん",6,null,"丶","てん",null,null,"丶 - てん"]
[null,null,241,"卜 - と（卜）",8,null,"卜","と（卜）",null,null,"卜 - と（卜）"]
[null,null,242,"戸 - と（戸）",8,"a","戸","と（戸）",null,null,"戸 - と（戸）"]
[null,null,243,"斗 - と（斗）",8,null,"斗","と（斗）",null,null,"斗 - と（斗）"]
[null,null,244,"鬥 - とうがまえ",9,null,"鬥","とうがまえ",null,null,"鬥 - とうがまえ"]
[null,null,245,"冂 - どうがまえ",9,null,"冂","どうがまえ",null,null,"冂 - どうがまえ"]
[null,null,246,"戸 - とかんむり",9,null,"戸","とかんむり",null,null,"戸 - とかんむり"]
[null,null,247,"戸 - とだれ",7,null,"戸","とだれ",null,null,"戸 - とだれ"]
[null,null,248,"飛 - とぶ",6,null,"飛","とぶ",null,null,"飛 - とぶ"]
[null,null,249,"斗 - とます",7,null,"斗","とます",null,null,"斗 - とます"]
[null,null,250,"止 - とめへん",8,"a","止","とめへん",null,null,"止 - とめへん"]
[null,null,251,"止 - とめる",7,null,"止","とめる",null,null,"止 - とめる"]
[null,null,252,"虍 - とらがしら",9,null,"虍","とらがしら",null,null,"虍 - とらがしら"]
[null,null,253,"虍 - とらかんむり",10,null,"虍","とらかんむり",null,null,"虍 - とらかんむり"]
[null,null,254,"鳥 - とり",6,null,"鳥","とり",null,null,"鳥 - とり"]
[null,null,255,"酉 - とりへん",8,null,"酉","とりへん",null,null,"酉 - とりへん"]
[null,null,256,"な行の部首一覧",7,"a","な","首一覧",null,null,"な行の部首一覧"]
[null,null,257,"長 - ながい",7,null,"長","ながい",null,null,"長 - ながい"]
[null,null,258,"毋 - なかれ",{"$f":"LEN(D260)","v":7},null,{"$f":"LEFT($D260,G$2)","v":"毋"},{"$f":"IFERROR(RIGHT($D260,(E260-4)),\"\")","v":"なかれ"},null,null,"毋 - なかれ"]
[null,null,259,"旡 - なし",6,null,"旡","なし",null,null,"旡 - なし"]
[null,null,260,"夊 - なつあし",8,null,"夊","なつあし",null,null,"夊 - なつあし"]
[null,null,261,"亠 - なべぶた",8,null,"亠","なべぶた",null,null,"亠 - なべぶた"]
[null,null,262,"韋 - なめしがわ",9,null,"韋","なめしがわ",null,null,"韋 - なめしがわ"]
[null,null,263,"比 - ならびひ",8,null,"比","ならびひ",null,null,"比 - ならびひ"]
[null,null,264,"二 - に",5,null,"二","に",null,null,"二 - に"]
[null,null,265,"鬯 - においざけ",9,null,"鬯","においざけ",null,null,"鬯 - においざけ"]
[null,null,266,"肉 - にく",6,null,"肉","にく",null,null,"肉 - にく"]
[null,null,267,"月 - にくづき",8,null,"月","にくづき",null,null,"月 - にくづき"]
[null,null,268,"襾 - にし（襾）",9,null,"襾","にし（襾）",null,null,"襾 - にし（襾）"]
[null,null,269,"西 - にし（西）",9,null,"西","にし（西）",null,null,"西 - にし（西）"]
[null,null,270,"廾 - にじゅうあし",10,null,"廾","にじゅうあし",null,null,"廾 - にじゅうあし"]
[null,null,271,"冫 - にすい",7,"a","冫","にすい",null,null,"冫 - にすい"]
[null,null,272,"日 - にちへん",8,null,"日","にちへん",null,null,"日 - にちへん"]
[null,null,273,"韭 - にら",6,null,"韭","にら",null,null,"韭 - にら"]
[null,null,274,"儿 - にんにょう",9,null,"儿","にんにょう",null,null,"儿 - にんにょう"]
[null,null,275,"亻 - にんべん",8,null,"亻","にんべん",null,null,"亻 - にんべん"]
[null,null,276,"黹 - ぬいとり",8,"a","黹","ぬいとり",null,null,"黹 - ぬいとり"]
[null,null,277,"鼠 - ねずみ",7,null,"鼠","ねずみ",null,null,"鼠 - ねずみ"]
[null,null,278,"鼠 - ねずみへん",9,null,"鼠","ねずみへん",null,null,"鼠 - ねずみへん"]
[null,null,279,"艮 - ねづくり",8,null,"艮","ねづくり",null,null,"艮 - ねづくり"]
[null,null,280,"丿 - の",5,null,"丿","の",null,null,"丿 - の"]
[null,null,281,"禾 - のぎ",6,null,"禾","のぎ",null,null,"禾 - のぎ"]
[null,null,282,"禾 - のぎへん",8,null,"禾","のぎへん",null,null,"禾 - のぎへん"]
[null,null,283,"釆 - のごめ",7,null,"釆","のごめ",null,null,"釆 - のごめ"]
[null,null,284,"釆 - のごめへん",9,null,"釆","のごめへん",null,null,"釆 - のごめへん"]
[null,null,285,"攵 - のぶん",7,null,"攵","のぶん",null,null,"攵 - のぶん"]
[null,null,286,"は行の部首一覧",7,"a","は","首一覧",null,null,"は行の部首一覧"]
[null,null,287,"八 - は（八）",8,null,"八","は（八）",null,null,"八 - は（八）"]
[null,null,288,"歯 - は（歯）",8,"a","歯","は（歯）",null,null,"歯 - は（歯）"]
[null,null,289,"齒 - は（齒）",8,null,"齒","は（齒）",null,null,"齒 - は（齒）"]
[null,null,290,"麦 - ばくにょう",9,null,"麦","ばくにょう",null,null,"麦 - ばくにょう"]
[null,null,291,"匚 - はこがまえ",9,null,"匚","はこがまえ",null,null,"匚 - はこがまえ"]
[null,null,292,"走 - はしる",7,null,"走","はしる",null,null,"走 - はしる"]
[null,null,293,"八 - はち",6,null,"八","はち",null,null,"八 - はち"]
[null,null,294,"八 - はちがしら",9,null,"八","はちがしら",null,null,"八 - はちがしら"]
[null,null,295,"癶 - はつがしら",9,null,"癶","はつがしら",null,null,"癶 - はつがしら"]
[null,null,296,"鼻 - はな",6,null,"鼻","はな",null,null,"鼻 - はな"]
[null,null,297,"鼻 - はなへん",8,null,"鼻","はなへん",null,null,"鼻 - はなへん"]
[null,null,298,"羽 - はね",6,null,"羽","はね",null,null,"羽 - はね"]
[null,null,299,"亅 - はねぼう",8,null,"亅","はねぼう",null,null,"亅 - はねぼう"]
[null,null,300,"巾 - はば",6,null,"巾","はば",null,null,"巾 - はば"]
[null,null,301,"毋 - ははのかん",9,null,"毋","ははのかん",null,null,"毋 - ははのかん"]
[null,null,302,"巾 - はばへん",8,null,"巾","はばへん",null,null,"巾 - はばへん"]
[null,null,303,"歯 - はへん（歯）",10,null,"歯","はへん（歯）",null,null,"歯 - はへん（歯）"]
[null,null,304,"齒 - はへん（齒）",10,null,"齒","はへん（齒）",null,null,"齒 - はへん（齒）"]
[null,null,305,"丿 - はらいぼう",9,null,"丿","はらいぼう",null,null,"丿 - はらいぼう"]
[null,null,306,"匕 - ひ（匕）",8,null,"匕","ひ（匕）",null,null,"匕 - ひ（匕）"]
[null,null,307,"日 - ひ（日）",8,"a","日","ひ（日）",null,null,"日 - ひ（日）"]
[null,null,308,"火 - ひ（火）",8,null,"火","ひ（火）",null,null,"火 - ひ（火）"]
[null,null,309,"非 - ひ（非）",8,null,"非","ひ（非）",null,null,"非 - ひ（非）"]
[null,null,310,"疋 - ひき",6,null,"疋","ひき",null,null,"疋 - ひき"]
[null,null,311,"𤴔 - ひきへん",9,null,"𤴔"," ひきへん",null,null,"𤴔 - ひきへん"]
[null,null,312,"羊 - ひつじ",7,null,"羊","ひつじ",null,null,"羊 - ひつじ"]
[null,null,313,"羊 - ひつじへん",9,null,"羊","ひつじへん",null,null,"羊 - ひつじへん"]
[null,null,314,"人 - ひと",6,null,"人","ひと",null,null,"人 - ひと"]
[null,null,315,"儿 - ひとあし",8,null,"儿","ひとあし",null,null,"儿 - ひとあし"]
[null,null,316,"人 - ひとがしら",9,null,"人","ひとがしら",null,null,"人 - ひとがしら"]
[null,null,317,"人 - ひとやね",8,null,"人","ひとやね",null,null,"人 - ひとやね"]
[null,null,318,"日 - ひへん",7,"a","日","ひへん",null,null,"日 - ひへん"]
[null,null,319,"火 - ひへん",7,null,"火","ひへん",null,null,"火 - ひへん"]
[null,null,320,"酉 - ひよみのとり",10,null,"酉","ひよみのとり",null,null,"酉 - ひよみのとり"]
[null,null,321,"曰 - ひらび",7,null,"曰","ひらび",null,null,"曰 - ひらび"]
[null,null,322,"旡 - ぶ",{"$f":"LEN(D324)","v":5},null,{"$f":"LEFT($D324,G$2)","v":"旡"},{"$f":"IFERROR(RIGHT($D324,(E324-4)),\"\")","v":"ぶ"},null,null,"旡 - ぶ"]
[null,null,323,"卩 - ふしづくり（卩）",12,"a","卩","ふしづくり（卩）",null,null,"卩 - ふしづくり（卩）"]
[null,null,324,"⺋ - ふしづくり（⺋）",12,"a","⺋","ふしづくり（⺋）",null,null,"⺋ - ふしづくり（⺋）"]
[null,null,325,"豕 - ぶた",6,null,"豕","ぶた",null,null,"豕 - ぶた"]
[null,null,326,"黹 - ふつへん",8,"a","黹","ふつへん",null,null,"黹 - ふつへん"]
[null,null,327,"聿 - ふでづくり",9,null,"聿","ふでづくり",null,null,"聿 - ふでづくり"]
[null,null,328,"舟 - ふね",6,"a","舟","ふね",null,null,"舟 - ふね"]
[null,null,329,"舟 - ふねへん",8,null,"舟","ふねへん",null,null,"舟 - ふねへん"]
[null,null,330,"夂 - ふゆがしら",9,null,"夂","ふゆがしら",null,null,"夂 - ふゆがしら"]
[null,null,331,"隹 - ふるとり",8,null,"隹","ふるとり",null,null,"隹 - ふるとり"]
[null,null,332,"文 - ぶん",6,null,"文","ぶん",null,null,"文 - ぶん"]
[null,null,333,"黽 - べん",6,null,"黽","べん",null,null,"黽 - べん"]
[null,null,334,"黽 - べんあし",8,"a","黽","べんあし",null,null,"黽 - べんあし"]
[null,null,335,"方 - ほう",6,null,"方","ほう",null,null,"方 - ほう"]
[null,null,336,"方 - ほうへん",8,"a","方","ほうへん",null,null,"方 - ほうへん"]
[null,null,337,"丨 - ぼう",6,null,"丨","ぼう",null,null,"丨 - ぼう"]
[null,null,338,"卜 - ぼく",6,null,"卜","ぼく",null,null,"卜 - ぼく"]
[null,null,339,"攴 - ぼくづくり（攴）",12,null,"攴","ぼくづくり（攴）",null,null,"攴 - ぼくづくり（攴）"]
[null,null,340,"攵 - ぼくづくり（攵）",12,null,"攵","ぼくづくり（攵）",null,null,"攵 - ぼくづくり（攵）"]
[null,null,341,"攴 - ぼくにょう",9,"a","攴","ぼくにょう",null,null,"攴 - ぼくにょう"]
[null,null,342,"矛 - ほこ",6,null,"矛","ほこ",null,null,"矛 - ほこ"]
[null,null,343,"戈 - ほこがまえ",9,null,"戈","ほこがまえ",null,null,"戈 - ほこがまえ"]
[null,null,344,"戈 - ほこづくり（戈）",12,null,"戈","ほこづくり（戈）",null,null,"戈 - ほこづくり（戈）"]
[null,null,345,"殳 - ほこづくり（殳）",12,null,"殳","ほこづくり（殳）",null,null,"殳 - ほこづくり（殳）"]
[null,null,346,"缶 - ほとぎ",7,null,"缶","ほとぎ",null,null,"缶 - ほとぎ"]
[null,null,347,"骨 - ほね",6,null,"骨","ほね",null,null,"骨 - ほね"]
[null,null,348,"骨 - ほねへん",8,"a","骨","ほねへん",null,null,"骨 - ほねへん"]
[null,null,349,"ま行の部首一覧",7,null,"ま","首一覧",null,null,"ま行の部首一覧"]
[null,null,350,"舛 - まいあし",8,null,"舛","まいあし",null,null,"舛 - まいあし"]
[null,null,351,"巛 - まがりかわ",9,null,"巛","まがりかわ",null,null,"巛 - まがりかわ"]
[null,null,352,"冂 - まきがまえ",9,null,"冂","まきがまえ",null,null,"冂 - まきがまえ"]
[null,null,353,"又 - また",6,"a","又","また",null,null,"又 - また"]
[null,null,354,"广 - まだれ",7,null,"广","まだれ",null,null,"广 - まだれ"]
[null,null,355,"豆 - まめ",6,null,"豆","まめ",null,null,"豆 - まめ"]
[null,null,356,"身 - み",5,"a","身","み",null,null,"身 - み"]
[null,null,357,"水 - みず",6,null,"水","みず",null,null,"水 - みず"]
[null,null,358,"自 - みずから",8,null,"自","みずから",null,null,"自 - みずから"]
[null,null,359,"身 - みへん",7,null,"身","みへん",null,null,"身 - みへん"]
[null,null,360,"耳 - みみ",6,"a","耳","みみ",null,null,"耳 - みみ"]
[null,null,361,"耳 - みみへん",8,null,"耳","みみへん",null,null,"耳 - みみへん"]
[null,null,362,"見 - みる",6,null,"見","みる",null,null,"見 - みる"]
[null,null,363,"厶 - む",5,null,"厶","む",null,null,"厶 - む"]
[null,null,364,"麦 - むぎ",6,null,"麦","むぎ",null,null,"麦 - むぎ"]
[null,null,365,"虫 - むし",6,"a","虫","むし",null,null,"虫 - むし"]
[null,null,366,"豸 - むじなへん",9,null,"豸","むじなへん",null,null,"豸 - むじなへん"]
[null,null,367,"虫 - むしへん",8,"a","虫","むしへん",null,null,"虫 - むしへん"]
[null,null,368,"邑 - むら",6,null,"邑","むら",null,null,"邑 - むら"]
[null,null,369,"目 - め",5,null,"目","め",null,null,"目 - め"]
[null,null,370,"目 - めへん",7,null,"目","めへん",null,null,"目 - めへん"]
[null,null,371,"面 - めん",6,null,"面","めん",null,null,"面 - めん"]
[null,null,372,"用 - もちいる",8,"a","用","もちいる",null,null,"用 - もちいる"]
[null,null,373,"門 - もん",6,"a","門","もん",null,null,"門 - もん"]
[null,null,374,"門 - もんがまえ",9,null,"門","もんがまえ",null,null,"門 - もんがまえ"]
[null,null,375,"や行の部首一覧",7,null,"や","首一覧",null,null,"や行の部首一覧"]
[null,null,376,"矢 - や",5,"a","矢","や",null,null,"矢 - や"]
[null,null,377,"龠 - やく",6,null,"龠","やく",null,null,"龠 - やく"]
[null,null,378,"矢 - やへん",7,null,"矢","やへん",null,null,"矢 - やへん"]
[null,null,379,"山 - やま",6,null,"山","やま",null,null,"山 - やま"]
[null,null,380,"疒 - やまいだれ",9,"a","疒","やまいだれ",null,null,"疒 - やまいだれ"]
[null,null,381,"山 - やまへん",8,null,"山","やまへん",null,null,"山 - やまへん"]
[null,null,382,"夕 - ゆう",6,null,"夕","ゆう",null,null,"夕 - ゆう"]
[null,null,383,"夕 - ゆうべ",7,null,"夕","ゆうべ",null,null,"夕 - ゆうべ"]
[null,null,384,"行 - ゆきがまえ",9,null,"行","ゆきがまえ",null,null,"行 - ゆきがまえ"]
[null,null,385,"弓 - ゆみ",6,"a","弓","ゆみ",null,null,"弓 - ゆみ"]
[null,null,386,"弓 - ゆみへん",{"$f":"LEN(D388)","v":8},null,{"$f":"LEFT($D388,G$2)","v":"弓"},{"$f":"IFERROR(RIGHT($D388,(E388-4)),\"\")","v":"ゆみへん"},null,null,"弓 - ゆみへん"]
[null,null,387,"幺 - よう",6,"a","幺","よう",null,null,"幺 - よう"]
[null,null,388,"弋 - よく",6,"a","弋","よく",null,null,"弋 - よく"]
[null,null,389,"罒 - よこめ",7,null,"罒","よこめ",null,null,"罒 - よこめ"]
[null,null,390,"ら行の部首一覧",7,null,"ら","首一覧",null,null,"ら行の部首一覧"]
[null,null,391,"耒 - らいすき",8,null,"耒","らいすき",null,null,"耒 - らいすき"]
[null,null,392,"忄 - りっしんべん",10,null,"忄","りっしんべん",null,null,"忄 - りっしんべん"]
[null,null,393,"刂 - りっとう",8,"a","刂","りっとう",null,null,"刂 - りっとう"]
[null,null,394,"竜 - りゅう（竜）",10,null,"竜","りゅう（竜）",null,null,"竜 - りゅう（竜）"]
[null,null,395,"龍 - りゅう（龍）",10,null,"龍","りゅう（龍）",null,null,"龍 - りゅう（龍）"]
[null,null,396,"殳 - るまた",7,null,"殳","るまた",null,null,"殳 - るまた"]
[null,null,397,"鬲 - れい",6,null,"鬲","れい",null,null,"鬲 - れい"]
[null,null,398,"隶 - れいづくり ",10,null,"隶","れいづくり ",null,null,"隶 - れいづくり "]
[null,null,399,"灬 - れっか",7,"a","灬","れっか",null,null,"灬 - れっか"]
[null,null,400,"灬 - れんが",7,"a","灬","れんが",null,null,"灬 - れんが"]
[null,null,401,"わ行の部首一覧",7,"a","わ","首一覧",null,null,"わ行の部首一覧"]
[null,null,402,"冖 - わかんむり",9,null,"冖","わかんむり",null,null,"冖 - わかんむり"]
[null,null,403,"卩 - わりふ（卩）",10,null,"卩","わりふ（卩）",null,null,"卩 - わりふ（卩）"]
[null,null,404,"⺋ - わりふ（⺋）",10,"a","⺋","わりふ（⺋）",null,null,"⺋ - わりふ（⺋）"]
[null,null,405,"鬲 - れい",6,null,"鬲","れい"]
[null,null,406,"隶 - れいづくり ",10,null,"隶","れいづくり "]
[null,null,407,"? - れっか",7,"a","?","れっか"]
[null,null,408,"? - れんが",7,"a","?","れんが"]
[null,null,409,null,0,null,"",""]
[null,null,410,"わ行の部首一覧",7,null,"わ","首一覧"]
[null,null,411,"冖 - わかんむり",9,"a","冖","わかんむり"]
[null,null,412,"卩 - わりふ（卩）",10,null,"卩","わりふ（卩）"]
[null,null,413,"? - わりふ（?）",10,null,"?","わりふ（?）"]

{"sheet":"部首の位置のもと","index":3,"n_rows":74,"n_cols":14,"rows_kept":74,"cut":false,"hidden":false,"merged":[]}
[]
[]
[null,0,"部首の呼び名"]
[null,1,"へん",null,1,null,1,1,1,1]
[null,2,"つくり",null,null,null,1,1,1,1]
[null,3,"かんむり",null,null,null,1,1,1,1]
[null,4,"あし",null,null,null,1,1,1,1]
[null,5,"たれ",null,null,null,1,1,1,1]
[null,6,"にょう",null,null,null,1,1,1,1]
[null,7,"かまえ",null,null,null,1,1,1,1]
[null,8,"かまえ",null,null,null,1,1,1,1]
[]
[null,null,null,null,2,null,null,null,null,null,2,2,2,2]
[null,null,null,null,null,null,null,null,null,null,2,2,2,2]
[null,null,null,null,null,null,null,null,null,null,2,2,2,2]
[null,null,null,null,null,null,null,null,null,null,2,2,2,2]
[null,null,null,null,null,null,null,null,null,null,2,2,2,2]
[null,null,null,null,null,null,null,null,null,null,2,2,2,2]
[null,null,null,null,null,null,null,null,null,null,2,2,2,2]
[null,null,null,null,null,null,null,null,null,null,2,2,2,2]
[]
[null,null,null,null,3,null,3,3,3,3,3,3,3,3]
[null,null,null,null,null,null,3,3,3,3,3,3,3,3]
[]
[]
[]
[]
[]
[]
[]
[null,null,null,null,4]
[]
[]
[]
[]
[null,null,null,null,null,null,4,4,4,4,4,4,4,4]
[null,null,null,null,null,null,4,4,4,4,4,4,4,4]
[null,null,null,null,null,null,4,4,4,4,4,4,4,4]
[]
[null,null,null,null,5,null,5,5,5,5,5,5,5,5]
[null,null,null,null,null,null,5,5,5,5,5,5,5,5]
[null,null,null,null,null,null,5,5]
[null,null,null,null,null,null,5,5]
[null,null,null,null,null,null,5,5]
[null,null,null,null,null,null,5,5]
[null,null,null,null,null,null,5,5]
[null,null,null,null,null,null,5,5]
[]
[null,null,null,null,6,null,6,6]
[null,null,null,null,null,null,6,6]
[null,null,null,null,null,null,6,6]
[null,null,null,null,null,null,6,6]
[null,null,null,null,null,null,6,6]
[null,null,null,null,null,null,6,6]
[null,null,null,null,null,null,6,6,6,6,6,6,6,6]
[null,null,null,null,null,null,6,6,6,6,6,6,6,6]
[]
[null,null,null,null,7,null,7,7,7,7,7,7,7,7]
[null,null,null,null,null,null,7,7,7,7,7,7,7,7]
[null,null,null,null,null,null,7,7,null,null,null,null,7,7]
[null,null,null,null,null,null,7,7,null,null,null,null,7,7]
[null,null,null,null,null,null,7,7,null,null,null,null,7,7]
[null,null,null,null,null,null,7,7,null,null,null,null,7,7]
[null,null,null,null,null,null,7,7,null,null,null,null,7,7]
[null,null,null,null,null,null,7,7,null,null,null,null,7,7]
[]
[null,null,null,null,8,null,8,8,8,8,8,8,8,8]
[null,null,null,null,null,null,8,8,8,8,8,8,8,8]
[null,null,null,null,null,null,8,8,null,null,null,null,8,8]
[null,null,null,null,null,null,8,8,null,null,null,null,8,8]
[null,null,null,null,null,null,8,8,null,null,null,null,8,8]
[null,null,null,null,null,null,8,8,null,null,null,null,8,8]
[null,null,null,null,null,null,8,8,8,8,8,8,8,8]
[null,null,null,null,null,null,8,8,8,8,8,8,8,8]